Workbook

Sheet 2010(참고용) (hidden)
A1: 2010학년도 1학기 학사운영 계획 청심국제중고등학교
A2: 월 | B2: 주 | C2: 1학기 주요 학사 일정 | X2: 수 업 일 수 | Y2: 수업 시수
C3: 월요일 | F3: 화요일 | I3: 수요일 | L3: 목요일 | O3: 금요일 | R3: 토요일 | U3: 일요일 | Y3: 교과 수업 시수 | Z3: 특별활동 수업 | AE3: 전체 시수
Z4: 자치 | AA4: 적응 | AB4: 봉사 | AC4: 행사 | AD4: 계발
C5: 일자 | D5: 수업 시수 | E5: 행사 내용 | F5: 일자 | G5: 수업 시수 | H5: 행사 내용 | I5: 일자 | J5: 수업 시수 | K5: 행사 내용 | L5: 일자 | M5: 수업 시수 | N5: 행사 내용 | O5: 일자 | P5: 수업 시수 | Q5: 행사 내용 | R5: 일자 | S5: 수업 시수 | T5: 행사 내용 | U5: 일자 | V5: 수업 시수 | W5: 행사 내용
A7: 3 | B7: 1 | C7: 1 | E7: 삼일절 | F7: 2 | G7: 7 | H7: 개학식 입학식 | I7: 3 | J7: 7 | K7: 평가협의회 | L7: 4 | M7: 7 | N7: 성적관리 위원회 1학기수업 계획서제출 | O7: 5 | P7: 6 | Q7: 평가계획서제출 과제연구 계획확정 국내진학연수 | R7: 6 | S7: 2 | T7: 학급회장선거 봉사활동교육 국내진학연수 학부모워크샵(국제) | U7: 7 | X7: 5 | Y7: =D7+G7+J7+M7+P7+S7 -> 29
B8: 2 | C8: 8 | D8: 7 | E8: 방과후수업시작(중,국내) 학습분위기조성주간 방과후 학교강사 계약 | F8: 9 | G8: 7 | H8: 정수기 수질검사 | I8: 10 | J8: 7 | K8: 방과후학교 수능모의고사 (고1~3) | L8: 11 | M8: 7 | N8: 학부모총회 (고2,3 국내반) | O8: 12 | P8: 6 | Q8: 수행평가캘린더 작성완료 학부모총회 (중,고1국내반) | R8: 13 | T8: 토요휴업일 | U8: 14 | X8: 5 | Y8: 34
B9: 3 | C9: 15 | D9: 7 | E9: 바르고고운말사용주간 방과후학교수강신청조정일(국내) | F9: 16 | G9: 7 | I9: 17 | J9: 7 | L9: 18 | M9: 7 | O9: 19 | P9: 6 | Q9: 간부수련회 명사특강(중,고) 국내반워크샵 | R9: 20 | S9: 2 | T9: C.A | U9: 21 | X9: 6 | Y9: 36
B10: 4 | C10: 22 | D10: 7 | E10: 주변정리정돈주간 | F10: 23 | G10: 7 | I10: 24 | J10: 7 | K10: 교과주임회의 | L10: 25 | M10: 7 | N10: 성적관리 위원회 과제연구계획서 제출 마감 | O10: 26 | P10: 6 | Q10: 결산서작성완료 | R10: 27 | T10: 토요휴업일 | U10: 28 | X10: 5 | Y10: 34
A11: 4 | B11: 5 | C11: 29 | D11: 7 | E11: 학습분위기조성주간 중학교학부모 상담주간 (~4/15일) | F11: 30 | G11: 7 | H11: 학교 성과평가 | I11: 31 | J11: 7 | K11: (고)중간고사원안마감 교과별중점추진계획발표 과제,프로젝트연구계획서 | L11: 1 | M11: 7 | N11: 해외대학정시 발표일 과제연구 계획서심의 | O11: 2 | P11: 6 | Q11: 예절교육(중) 학교운영위원회 (지역위원, 결산) | R11: 3 | S11: 2 | T11: C.A 정기전편입 (4/4일시행예정) | U11: 4 | W11: 정기전편입 | X11: 6 | Y11: 36
B12: 6 | C12: 5 | D12: 7 | E12: 학습분위기조성주간 학교 성과평가 | F12: 6 | G12: 7 | H12: 무감독시험연수(고) 학교 성과평가 | I12: 7 | J12: 3 | K12: (고)중간고사 학교 성과평가 | L12: 8 | M12: 3 | N12: (고)중간고사 | O12: 9 | P12: 6 | Q12: (고)중간고사 | R12: 10 | T12: 토요휴업일 | U12: 11 | X12: 5 | Y12: 26
B13: 7 | C13: 12 | D13: 7 | E13: 서로칭찬해주기주간 | F13: 13 | G13: 7 | H13: 수능모의고사 (고3) | I13: 14 | J13: 7 | K13: (고)성적처리완료 | L13: 15 | M13: 7 | N13: 성적확인마감 | O13: 16 | P13: 6 | R13: 17 | S13: 2 | T13: 교내입학 설명회 학부모워크샵(국제) C.A | U13: 18 | X13: 6 | Y13: 36
B14: 8 | C14: 19 | D14: 7 | E14: 인사잘하기주간 | F14: 20 | G14: 7 | I14: 21 | J14: 7 | K14: 교과주임회의 | L14: 22 | M14: 7 | N14: (중)중간고사원안마감 | O14: 23 | P14: 6 | R14: 24 | T14: 토요휴업일 | U14: 25 | X14: 5 | Y14: 34
A15: 5 | B15: 9 | C15: 26 | D15: 7 | E15: 바른말고운말사용주간 | F15: 27 | G15: 7 | H15: 무감독시험연수(중) | I15: 28 | J15: 3 | K15: (중)중간고사 | L15: 29 | M15: 3 | N15: (중)중간고사 | O15: 30 | P15: 6 | Q15: (중)중간고사 학교운영위원회 | R15: 1 | S15: 2 | T15: SAT C.A | U15: 2 | X15: 6 | Y15: 28
B16: 10 | C16: 3 | D16: 7 | E16: 2010 AP Exam(3-21) 용의복장점검주간 | F16: 4 | G16: 7 | I16: 5 | K16: 어린이날 | L16: 6 | N16: 재량휴업일 모교방문 | O16: 7 | Q16: 재량휴업일 모교방문 | R16: 8 | T16: 토요휴업일 | U16: 9 | X16: 2 | Y16: 14
B17: 11 | C17: 10 | D17: 7 | E17: 주변정리정돈주간 | F17: 11 | G17: 7 | H17: (중)성적처리완료 | I17: 12 | J17: 7 | K17: 성적확인마감 국내주요대학입학설명회 | L17: 13 | M17: 7 | O17: 14 | P17: 6 | Q17: 명사특강(중,고) | R17: 15 | S17: 2 | T17: 스승의날 교내입학 설명회 | U17: 16 | X17: 6 | Y17: 36
B18: 12 | C18: 17 | D18: 0 | E18: 현장체험학습 (중,고1국내) 서로칭찬해주기주간 | F18: 18 | G18: 0 | H18: 현장체험학습 (중,고1국내) 국내주요대학입학설명회 | I18: 19 | J18: 0 | K18: 현장체험학습 (중,고1국내) | L18: 20 | M18: 0 | N18: 현장체험학습 (중,고1국내) 성적관리 위원회 | O18: 21 | Q18: 석가탄신일 현장체험학습 (고1국내) | R18: 22 | T18: 토요휴업일 현장체험학습 (고1국내) | U18: 23 | X18: 4 | Y18: 0
B19: 13 | C19: 24 | D19: 7 | E19: 인사잘하기주간 | F19: 25 | G19: 7 | I19: 26 | J19: 7 | K19: 교과주임회의 | L19: 27 | M19: 7 | N19: 국내주요대학입학설명회 | O19: 28 | P19: 6 | Q19: 중3학부모 진학설명회 | R19: 29 | S19: 2 | T19: 교내입학 설명회 학부모워크샵(국제)/C.A | U19: 30 | X19: 6 | Y19: 36
A20: 6 | B20: 14 | C20: 31 | D20: 7 | E20: 교외홍보 바르고고운말사용주간 국내주요대학입학설명회 | F20: 1 | G20: 7 | H20: 교외홍보 | I20: 2 | K20: 지자체선거일 | L20: 3 | M20: 7 | N20: 교외홍보 | O20: 4 | P20: 6 | Q20: 교외홍보 중1,2학부모 워크샵 국내반워크샵 | R20: 5 | S20: 2 | T20: SAT C.A | U20: 6 | X20: 6 | Y20: 29
B21: 15 | C21: 7 | D21: 0 | E21: 해외체험학습 (고1국제) | F21: 8 | G21: 0 | H21: 해외체험학습 (고1국제) | I21: 9 | J21: 0 | K21: 해외체험학습 (고1국제) | L21: 10 | M21: 0 | N21: 해외체험학습 (고1국제) 수능모의고사(고3) | O21: 11 | P21: 0 | Q21: 해외체험학습 (고1국제) 국내주요대학입학설명회 | R21: 12 | T21: 토요휴업일 | U21: 13 | X21: 5 | Y21: 0
B22: 16 | C22: 14 | D22: 7 | E22: 용의복장점검주간 | F22: 15 | G22: 7 | I22: 16 | J22: 7 | K22: KSAT 수능모의고사(고1,2) | L22: 17 | M22: 0 | N22: 청심제 | O22: 18 | P22: 0 | Q22: 청심제 | R22: 19 | S22: 0 | T22: 청심제 교내입학 설명회 | U22: 20 | X22: 6 | Y22: 21
B23: 17 | C23: 21 | D23: 7 | E23: 수행평가마감 주변정리정돈주간 | F23: 22 | G23: 7 | H23: 성적관리 위원회 | I23: 23 | J23: 7 | L23: 24 | M23: 7 | O23: 25 | P23: 6 | Q23: 국내반1학기 방과후 학교 종료 | R23: 26 | T23: 토요휴업일 | U23: 27 | X23: 5 | Y23: 34
A24: 7 | B24: 18 | C24: 28 | D24: 7 | E24: 기말고사 원안마감 학습분위기조성주간 | F24: 29 | G24: 7 | I24: 30 | J24: 7 | K24: 교재 개발 1학기 점검 | L24: 1 | M24: 7 | O24: 2 | P24: 6 | Q24: 학교운영위원회 (방학중계획) | R24: 3 | S24: 2 | T24: 학부모워크샵(국제) C.A | U24: 4 | X24: 6 | Y24: 36
B25: 19 | C25: 5 | D25: 7 | E25: 학습분위기조성주간 | F25: 6 | G25: 3 | H25: 기말고사 | I25: 7 | J25: 3 | K25: 기말고사 | L25: 8 | M25: 3 | N25: 기말고사 | O25: 3 | P25: 6 | Q25: 기말고사 | R25: 10 | T25: 토요휴업일 7월전편입 (예정) | U25: 11 | X25: 5 | Y25: 22
B26: 20 | C26: 12 | D26: 7 | E26: 수상체험(중1) 교내모범학생표창(중,고) | F26: 13 | G26: 7 | H26: 성적처리완료 수상체험(중2) 성취도평가 (중3,고2) 모의고사(고3) | I26: 14 | J26: 7 | K26: 수상체험(중3) 회장단선거 1학기워크북 중3성취도평가 | L26: 15 | M26: 7 | N26: 수업만족도 조사(중) 성적확인마감 | O26: 16 | P26: 6 | Q26: 수업만족도 조사(고) 국내반워크샵 | R26: 17 | S26: 2 | T26: 방학식 전체교직원 하계연수 (~19일) | U26: 18 | W26: 전체교직원 하계연수 | X26: 6 | Y26: 36
B27: 21 | C27: 19 | E27: 전체교직원 하계연수 국제진학부 여름 보충수업(19-8/13) | F27: 20 | I27: 21 | L27: 22 | O27: 23 | Q27: 1기 부가가치세 신고 일용직신고 | R27: 24 | T27: 국제진학부 여름자선공연 | U27: 25 | X27: 0
A28: 1학기합계 | D28: =SUM(D7:D27) -> 119 | G28: =SUM(G7:G27) -> 122 | J28: =SUM(J7:J27) -> 100 | M28: =SUM(M7:M27) -> 100 | P28: =SUM(P7:P27) -> 96 | S28: =SUM(S7:S27) -> 20 | V28: =SUM(V7:V27) -> 0 | X28: =SUM(X7:X27) -> 106 | Y28: 557 | Z28: 0 | AA28: 0 | AB28: 0 | AC28: 0 | AD28: 0 | AE28: =SUM(Y28:AD28) -> 557
E30: `
A31: 2010학년도 2학기 학사운영 계획 청심국제중고등학교
A32: 월 | B32: 주 | C32: 2학기 주요 학사 일정 | X32: 수 업 일 수 | Y32: 수업 시수
C33: 월요일 | F33: 화요일 | I33: 수요일 | L33: 목요일 | O33: 금요일 | R33: 토요일 | U33: 일요일 | Y33: 교 과 수 업 | Z33: 특별활동 수업 | AE33: 합 계 시 수
Z34: 자치 | AA34: 적응 | AB34: 봉사 | AC34: 행사 | AD34: 계발
C35: 일자 | D35: 수업 시수 | E35: 행사 내용 | F35: 일자 | G35: 수업 시수 | H35: 행사 내용 | I35: 일자 | J35: 수업 시수 | K35: 행사 내용 | L35: 일자 | M35: 수업 시수 | N35: 행사 내용 | O35: 일자 | P35: 수업 시수 | Q35: 행사 내용 | R35: 일자 | S35: 수업 시수 | T35: 행사 내용 | U35: 일자 | V35: 수업 시수 | W35: 행사 내용
A37: 8 | B37: 1 | C37: 16 | E37: 전체교직원 하계연수 | F37: 17 | H37: 전체교직원 하계연수 전교생귀교일 중학교원서접수시작 | I37: 18 | J37: 7 | K37: 개학식 학급회장선거 | L37: 19 | M37: 7 | N37: 평가협의회 2학기교육 계획서제출 | O37: 20 | P37: 6 | Q37: 성적관리위원회 국내진학부연수 | R37: 21 | S37: 2 | T37: 평가계획서 제출 국내진학부 연수 C.A | U37: 22 | X37: 4 | Y37: =D37+G37+J37+M37+P37+S37 -> 22
B38: 2 | C38: 23 | D38: 7 | E38: 고3중간고사 원안마감 방과후학교시작(중,국내) 학습분위기조성주간 | F38: 24 | G38: 7 | I38: 25 | J38: 7 | K38: 교과주임회의 방과후학교수강조정신청(국내) | L38: 26 | M38: 7 | N38: 중입방문접수 | O38: 27 | P38: 6 | Q38: 수행평가캘린더 작성완료 중입방문접수 방과후학교수강신청확정 | R38: 28 | T38: 토요휴업일 | U38: 29 | X38: 5 | Y38: 34
A39: 9 | B39: 3 | C39: 30 | D39: 3 | E39: 중간고사 (고3) | F39: 31 | G39: 3 | H39: 중간고사(고3) 학생부기준일 과제연구프로젝트중간보고 제출마감 | I39: 1 | J39: 7 | K39: 중간고사 (고3) | L39: 2 | M39: 7 | N39: 과제연구중간보고서 심의 | O39: 3 | P39: 6 | Q39: 간부수련회 명사특강(중,고) | R39: 4 | S39: 2 | T39: 간부수련회 학부모워크샵(국제) C.A | U39: 5 | X39: 6 | Y39: 28
B40: 4 | C40: 6 | D40: 7 | E40: 우수동아리 선정 바른말고운말사용주간 | F40: 7 | G40: 7 | H40: 성적처리완료 | I40: 8 | J40: 7 | K40: 성적확인마감 수시원서접수 | L40: 9 | M40: 7 | O40: 10 | P40: 6 | R40: 11 | T40: 토요휴업일 | U40: 12 | X40: 5 | Y40: 34
B41: 5 | C41: 13 | D41: 7 | E41: 용의복장점검주간 | F41: 14 | G41: 7 | I41: 15 | J41: 7 | L41: 16 | M41: 7 | N41: 수능모의고사 (고1,2) | O41: 17 | P41: 6 | Q41: 중3학부모 진학설명회 국내반워크샵 | R41: 18 | S41: 2 | T41: C.A | U41: 19 | X41: 6 | Y41: 36
B42: 6 | C42: 20 | E42: 재량휴업일 | F42: 21 | H42: 추석연휴 | I42: 22 | K42: 추석 | L42: 23 | N42: 추석연휴 | O42: 24 | Q42: 재량휴업일 | R42: 25 | T42: 토요휴업일 | U42: 26 | X42: 0 | Y42: 0
A43: 10 | B43: 7 | C43: 27 | D43: 7 | E43: 주변정리정돈주간 | F43: 28 | G43: 7 | I43: 29 | J43: 7 | K43: 교과주임회의 | L43: 30 | M43: 7 | N43: 개교기념일 (정상수업) | O43: 1 | P43: 6 | Q43: 중입1차 합격자발표 | R43: 2 | S43: 2 | T43: C.A | U43: 3 | X43: 6 | Y43: 36
B44: 8 | C44: 4 | D44: 7 | E44: 서로칭찬해주기주 간 2011 사업계획 1차 협의회 | F44: 5 | G44: 7 | H44: 성적관리 위원회 | I44: 6 | J44: 7 | L44: 7 | M44: 7 | O44: 8 | P44: 6 | Q44: 고3,중3 수행평가마감 중1,2학부모워크 국내반2학기방과후학교종료(고3) | R44: 9 | T44: 토요휴업일 | U44: 10 | X44: 5 | Y44: 34
B45: 9 | C45: 11 | D45: 7 | E45: 학습분위기조성주간 2011 사업계획 1차 협의회 | F45: 12 | G45: 7 | H45: 중간/고3기말고사원안마감 | I45: 13 | J45: 7 | K45: 2010 PSAT Test | L45: 14 | M45: 7 | N45: 수능모의고사 (고3) | O45: 15 | P45: 6 | Q45: 국내반워크샵 | R45: 16 | S45: 2 | T45: C.A | U45: 17 | X45: 6 | Y45: 36
B46: 10 | C46: 18 | D46: 7 | E46: 학습분위기조성주간 | F46: 19 | G46: 3 | H46: 중간고사 기말고사 (고3) | I46: 20 | J46: 3 | K46: 중간고사 기말고사 (고3) 심층면접1 | L46: 21 | M46: 3 | N46: 중간고사 기말고사 (고3) 심층면접2 | O46: 22 | P46: 6 | Q46: 중간고사 기말고사 (고3) 심층면접3 | R46: 23 | T46: 토요휴업일 | U46: 24 | X46: 5 | Y46: 22
B47: 11 | C47: 25 | D47: 7 | E47: 인사잘하기주간 | F47: 26 | G47: 7 | I47: 27 | J47: 7 | K47: 성적처리완료 중입최종발표 교과주임회의 | L47: 28 | M47: 7 | N47: 성적확인마감 | O47: 29 | P47: 6 | Q47: 명사특강(중,고) | R47: 30 | S47: 2 | T47: 해외진학 수시 마감일 C.A | U47: 31 | X47: 6 | Y47: 36
A48: 11 | B48: 12 | C48: 1 | D48: 7 | E48: 바른말고운말사용주간 | F48: 2 | G48: 7 | I48: 3 | J48: 7 | K48: 성적관리 위원회 | L48: 4 | M48: 7 | O48: 5 | P48: 6 | Q48: 예절교육(고) 수업만족도 조사(중,고) | R48: 6 | S48: 2 | T48: C.A | U48: 7 | X48: 6 | Y48: 36
B49: 13 | C49: 8 | D49: 7 | E49: 수능시험응원주간 | F49: 9 | G49: 7 | I49: 10 | J49: 7 | L49: 11 | M49: 7 | O49: 12 | P49: 6 | R49: 13 | T49: 토요휴업일 | U49: 14 | X49: 5 | Y49: 34
B50: 14 | C50: 15 | D50: 7 | E50: 용의복장점검주간 과제연구최종 논문제출 | F50: 16 | G50: 7 | I50: 17 | J50: 7 | K50: 수능예비 소집일 | L50: 18 | M50: 7 | N50: 수능시험 | O50: 19 | P50: 6 | Q50: 국내진학부연수 가을문화체험 | R50: 20 | S50: 2 | T50: 국제반학부모 Workshop 국내진학부 연수 고입전형 | U50: 21 | X50: 6 | Y50: 36
B51: 15 | C51: 22 | D51: 7 | E51: 주변정리정돈주간 | F51: 23 | G51: 7 | H51: 수능모의고사 (고1,2) 성적관리 위원회 | I51: 24 | J51: 7 | K51: 중3기말고사 원안마감 교과주임회의 | L51: 25 | M51: 7 | O51: 26 | P51: 6 | Q51: 수행평가마감 국내반워크샵 | R51: 27 | T51: 토요휴업일 | U51: 28 | X51: 5 | Y51: 34
A52: 12 | B52: 16 | C52: 29 | D52: 7 | E52: 서로칭찬해주기주간 | F52: 30 | G52: 7 | H52: 프로젝트 최종보고서 제출 | I52: 1 | J52: 3 | K52: 기말고사 (중3) 2010년교재 개발진행완료 | L52: 2 | M52: 3 | N52: 기말고사 (중3) 2011 사업계획제출 | O52: 3 | P52: 6 | Q52: 기말고사 (중3) 학생부기준일 국내반2학기방과후학교종료 | R52: 4 | S52: 2 | T52: C.A | U52: 5 | X52: 6 | Y52: 28
B53: 17 | C53: 6 | D53: 7 | E53: 학습분위기조성주간 | F53: 7 | G53: 7 | H53: 성적처리완료 및 원안마감 | I53: 8 | J53: 7 | K53: 성적확인마감 수능성적 통지일 | L53: 9 | M53: 7 | O53: 10 | P53: 6 | R53: 11 | T53: 토요휴업일 | U53: 12 | X53: 5 | Y53: 34
B54: 18 | C54: 13 | D54: 7 | E54: 학습분위기조성주간 | F54: 14 | G54: 7 | I54: 15 | J54: 3 | K54: 기말고사 해외대학수시결과발표일 | L54: 16 | M54: 3 | N54: 기말고사 | O54: 17 | P54: 3 | Q54: 기말고사 정시원서접수 | R54: 18 | S54: 2 | T54: 기말고사 정시원서접수 | U54: 19 | W54: 정시원서접수 | X54: 6 | Y54: 25
B55: 19 | C55: 20 | D55: 7 | E55: 정시원서접수 스키캠프 인사잘하기주간 교내모범학생표창(중,고) | F55: 21 | G55: 7 | H55: 성적처리완료 정시원서접수 스키캠프 | I55: 22 | J55: 7 | K55: 성적확인마감 정시원서접수 2학기워크북 제출 작은음악회 | L55: 23 | M55: 7 | N55: 과제연구및 프로젝트 발표회 | O55: 24 | P55: 4 | Q55: 방학식 | R55: 25 | T55: 성탄절 | U55: 26 | X55: 5 | Y55: 32
B56: 20 | C56: 27 | E56: 전체교직원 동계연수 | F56: 28 | H56: 전체교직원 동계연수 | I56: 29 | K56: 전체교직원 동계연수 | L56: 30 | O56: 31 | Q56: 해외대학정시마감일
A57: 2 | B57: 21 | C57: 7 | F57: 8 | I57: 9 | L57: 10 | M57: 7 | N57: 개학식 | O57: 11 | P57: 4 | Q57: 졸업식 | R57: 12 | U57: 13 | X57: 2
C58: 14 | F58: 15 | I58: 16 | L58: 17 | O58: 18 | R58: 19 | U58: 20 | Y58: =D58+G58+J58+M58+P58+S58 -> 0
B59: 22 | C59: 21 | E59: 전체교직원 동계연수 | F59: 22 | H59: 전체교직원 동계연수 | I59: 23 | K59: 신입생OT 재학생귀교일 | L59: 24 | M59: 7 | N59: 신입생OT 재학생등교일 | O59: 25 | P59: 4 | Q59: 신입생입학식 귀가일 | R59: 26 | U59: 27 | X59: 2 | Y59: =SUM(D59+G59+J59+M59+P59+V59) -> 11
A60: 2학기 합계 | D60: =SUM(D37:D59) -> 115 | G60: =SUM(G37:G59) -> 111 | J60: =SUM(J37:J59) -> 114 | M60: =SUM(M37:M59) -> 128 | P60: =SUM(P37:P59) -> 111 | S60: =SUM(S37:S59) -> 20 | V60: =SUM(V37:V59) -> 0 | X60: =SUM(X37:X59) -> 102 | Y60: 588 | Z60: 0 | AA60: 0 | AB60: 0 | AC60: 0 | AD60: 0
A61: 1년 합계 | D61: =SUM('2010(참고용)'!D60,D60) -> 230 | G61: =SUM('2010(참고용)'!G60,G60) -> 222 | J61: =SUM('2010(참고용)'!J60,J60) -> 228 | M61: =SUM('2010(참고용)'!M60,M60) -> 256 | P61: =SUM('2010(참고용)'!P60,P60) -> 222 | S61: =SUM('2010(참고용)'!S60,S60) -> 40 | V61: =SUM('2010(참고용)'!V60,V60) -> 0 | X61: =SUM('2010(참고용)'!X28,X60) -> 208 | Y61: =SUM('2010(참고용)'!Y28,Y60) -> 1145 | Z61: =SUM('2010(참고용)'!Z28,Z60) -> 0 | AA61: =SUM('2010(참고용)'!AA28,AA60) -> 0 | AB61: =SUM('2010(참고용)'!AB28,AB60) -> 0 | AC61: =SUM('2010(참고용)'!AC28,AC60) -> 0 | AD61: =SUM('2010(참고용)'!AD28,AD60) -> 0

Sheet 2011 (hidden)
A1: 2011학년도 1학기 학사운영 계획 청심국제중고등학교
A2: 월 | B2: 주 | C2: 1학기 주요 학사 일정 | U2: 수 업 일 수 | V2: 수업 시수
C3: 월요일 | F3: 화요일 | I3: 수요일 | L3: 목요일 | O3: 금요일 | R3: 토요일 | V3: 교과 수업 시수 | W3: 특별활동 수업 | AB3: 전체 시수
W4: 자치 | X4: 적응 | Y4: 봉사 | Z4: 행사 | AA4: 계발
C5: 일자 | D5: 수업 시수 | E5: 행사 내용 | F5: 일자 | G5: 수업 시수 | H5: 행사 내용 | I5: 일자 | J5: 수업 시수 | K5: 행사 내용 | L5: 일자 | M5: 수업 시수 | N5: 행사 내용 | O5: 일자 | P5: 수업 시수 | Q5: 행사 내용 | R5: 일자 | S5: 수업 시수 | T5: 행사 내용
A7: 3 | B7: 1 | C7: 28 | E7: 입학식 개학식 학교운영위원회 선출공고 | F7: 1 | H7: 삼일절 | I7: 2 | J7: 7 | K7: 평가협의회 | L7: 3 | M7: 7 | N7: 성적관리위원회 | O7: 4 | P7: 6 | Q7: 과제연구계획확정 평가계획서제출 | R7: 5 | S7: 2 | T7: 학급회장선거 학부모워크샵(국제) | U7: =COUNT(D7,G7,J7,M7,P7,S7) -> 4 | V7: =D7+G7+J7+M7+P7+S7 -> 22
B8: 2 | C8: 7 | D8: 7 | E8: 수업계획서제출 동아리등록개시 방과후학교시작(중) 학부모상담주간(중/~24일) | F8: 8 | G8: 7 | I8: 9 | J8: 7 | L8: 10 | M8: 7 | N8: 고3모의고사(예정) | O8: 11 | P8: 6 | Q8: 학부모총회(중) 수행평가캘린더작성 완료 | R8: 12 | T8: 토요휴업일 | U8: 5 | V8: 34
B9: 3 | C9: 14 | D9: 7 | E9: 1인1악기수업개시 방과후학교시작 (국내) | F9: 15 | G9: 7 | I9: 16 | J9: 7 | L9: 17 | M9: 7 | N9: 1학기워크샵(국내) | O9: 18 | P9: 6 | Q9: 간부수련회 2010학년도회계마감 | R9: 19 | S9: 2 | T9: 간부수련회 계발활동 부서배정 학부모워크샵(국내) 학부모워크샵(국제) | U9: 6 | V9: 36
B10: 4 | C10: 21 | D10: 7 | E10: Pymble 본교 방문(~4/1일) | F10: 22 | G10: 7 | I10: 23 | J10: 7 | L10: 24 | M10: 7 | O10: 25 | P10: 6 | R10: 26 | T10: 토요휴업일 | U10: 5 | V10: 34
A11: 4 | B11: 5 | C11: 28 | D11: 7 | E11: 과제연구계획서제출 마감 | F11: 29 | G11: 7 | I11: 30 | J11: 7 | K11: 평가협의회 | L11: 31 | M11: 7 | N11: 3월수업지도안제출 성적관리위원회 2010 결산서 보고 | O11: 1 | P11: 6 | Q11: 과제연구심의완료 춘추복착용 | R11: 2 | S11: 2 | U11: 6 | V11: 36
B12: 6 | C12: 4 | D12: 7 | F12: 5 | G12: 7 | I12: 6 | J12: 7 | K12: 중간고사원안마감 | L12: 7 | M12: 7 | O12: 8 | P12: 6 | Q12: 1차 학교운영위원회 (중,고) | R12: 9 | T12: 토요휴업일 | U12: 5 | V12: 34
B13: 7 | C13: 11 | D13: 7 | E13: 중학생 아태지역 RS 컨퍼런스-호주(~12) | F13: 12 | G13: 7 | H13: 무감독시험연수 (신입생대상) | I13: 13 | J13: 3 | K13: 중간고사 | L13: 14 | M13: 3 | N13: 중간고사 | O13: 15 | P13: 3 | Q13: 중간고사 | R13: 16 | S13: 2 | T13: 중간고사 | U13: 6 | V13: 25
B14: 8 | C14: 18 | D14: 7 | F14: 19 | G14: 7 | H14: 신체검사/체력검사 주요대학방문 (국내/~22일) | I14: 20 | J14: 7 | K14: 성적처리 | L14: 21 | M14: 7 | N14: 성적확인 마감 세계 책의 날 행사 | O14: 22 | P14: 6 | Q14: 학부모진학설명회 (중3) | R14: 23 | T14: 토요휴업일 | U14: 5 | V14: 34
B15: 9 | C15: 25 | D15: 7 | E15: 우수학급시상(중) | F15: 26 | G15: 7 | I15: 27 | J15: 7 | K15: 평가협의회 재난대응훈련 | L15: 28 | M15: 7 | N15: 성적관리위원회 재난대응훈련 | O15: 29 | P15: 7 | Q15: 대학입학설명회 (국내) 재난대응훈련 | R15: 30 | S15: 2 | U15: 6 | V15: 37
A16: 5 | B16: 10 | C16: 2 | D16: 7 | E16: AP 시험(~13일) | F16: 3 | G16: 7 | I16: 4 | J16: 7 | K16: 4월수업지도안제출 | L16: 5 | N16: 어린이날 | O16: 6 | Q16: 재량휴업일 모교방문의 날 | R16: 7 | T16: 재량휴업일 SAT | U16: 3 | V16: 21
B17: 11 | C17: 9 | E17: 재량휴업일 | F17: 10 | H17: 석가탄신일 | I17: 11 | J17: 7 | L17: 12 | M17: 7 | O17: 13 | P17: 6 | Q17: 2차 학교운영위원회 (중,고) | R17: 14 | T17: 토요휴업일 | U17: 3 | V17: 20
B18: 12 | C18: 16 | D18: 7 | E18: Knox 본교 방문 (~27일) | F18: 17 | G18: 7 | I18: 18 | J18: 7 | K18: AP Late (~20일) | L18: 19 | M18: 7 | O18: 20 | P18: 6 | Q18: 명사특강 대학입학설명회 (국내) | R18: 21 | S18: 2 | T18: 교내홍보 | U18: 6 | V18: 36
B19: 13 | C19: 23 | D19: 7 | F19: 24 | G19: 7 | I19: 25 | J19: 7 | L19: 26 | M19: 7 | O19: 27 | P19: 6 | R19: 28 | T19: 토요휴업일 | U19: 5 | V19: 34
A20: 6 | B20: 14 | C20: 30 | D20: 7 | F20: 31 | G20: 7 | I20: 1 | J20: 7 | K20: 하복착용 | L20: 2 | M20: 7 | O20: 3 | P20: 6 | Q20: 대학입학설명회 (국내) | R20: 4 | S20: 2 | T20: SAT | U20: 6 | V20: 36
B21: 15 | C21: 6 | D21: 7 | E21: 현충일 | F21: 7 | G21: 7 | I21: 8 | J21: 7 | L21: 9 | M21: 7 | N21: 모의 수능 | O21: 10 | P21: 6 | Q21: 학부모워크샵(중1,2) | R21: 11 | T21: 토요휴업일 | U21: 4 | V21: 34
B22: 16 | C22: 13 | D22: 7 | E22: 체험학습(중2) 해외봉사(고1,2) | F22: 14 | G22: 7 | H22: 체험학습(중1,2,3) 해외봉사(고1,2) | I22: 15 | J22: 7 | K22: 체험학습(중1,2,3) 해외봉사(고1,2) | L22: 16 | M22: 7 | N22: 체험학습(중1,2,3) 해외봉사(고1,2) | O22: 17 | P22: 6 | Q22: 체험학습(중1,2,3) 해외봉사(고1,2) | R22: 18 | S22: 2 | T22: 교내홍보 체험학습(중1,2,3) 해외봉사(고1,2) | U22: =COUNT(D22,G22,J22,M22,P22,S22) -> 6 | V22: 36
B23: 17 | C23: 20 | D23: 7 | E23: 수행평가마감 | F23: 21 | G23: 7 | I23: 22 | J23: 7 | K23: 평가협의회 | L23: 23 | M23: 7 | N23: 성적관리위원회 | O23: 24 | P23: 6 | Q23: 학부모워크샵(국제) | R23: 25 | T23: 토요휴업일 | U23: =COUNT(D23,G23,J23,M23,P23,S23) -> 5 | V23: 34
A24: 7 | B24: 18 | C24: 27 | D24: 7 | E24: 기말고사원안마감 교외홍보 | F24: 28 | G24: 7 | H24: 교외홍보 | I24: 29 | J24: 7 | K24: 교외홍보 | L24: 30 | M24: 7 | N24: 교외홍보 | O24: 1 | P24: 3 | Q24: 기말고사 | R24: 2 | S24: 2 | T24: 기말고사 | U24: =COUNT(D24,G24,J24,M24,P24,S24) -> 6 | V24: 33
B25: 19 | C25: 4 | D25: 3 | E25: 기말고사 | F25: 5 | G25: 3 | H25: 기말고사 | I25: 6 | J25: 7 | K25: 학부모수업만족도조사(~14일) | L25: 7 | M25: 7 | O25: 8 | P25: 6 | Q25: 진학설명회(중3학생) 3차 학교운영위원회 (중,고) | R25: 9 | T25: 토요휴업일 | U25: =COUNT(D25,G25,J25,M25,P25,S25) -> 5 | V25: 26
B26: 20 | C26: 11 | D26: 7 | E26: 수상스키체험(중) 대학입학설명회 (국내) 학생수업만족도조사 고등학생 아태지역 RS 컨퍼런스-호주(~13일) | F26: 12 | G26: 7 | H26: 수상스키체험(중) 대학입학설명회 (국내) 학생수업만족도조사 성적처리 | I26: 13 | J26: 7 | K26: 수상스키체험(중) 대학입학설명회 (국내) 학생수업만족도조사 성적확인마감 평가협의회 | L26: 14 | M26: 7 | N26: 청심제 Job Fair(국제) | O26: 15 | P26: 6 | Q26: 청심제 | R26: 16 | S26: 2 | T26: 청심제 방학식 전체교직원 하계연수(~18일) | U26: 6 | V26: 36
C27: 18 | E27: 전체교직원 하계연수 | F27: 19 | I27: 20 | L27: 21 | O27: 22 | R27: 23 | T27: 2011년 상반기 세무신고 | U27: =COUNT(J27,M27,P27,S27,G27) -> 0
A28: 1학기합계 | D28: =SUM(D7:D27) -> 122 | G28: =SUM(G7:G27) -> 122 | J28: =SUM(J7:J27) -> 136 | M28: =SUM(M7:M27) -> 129 | P28: =SUM(P7:P27) -> 109 | S28: =SUM(S7:S27) -> 20 | U28: =SUM(U7:U27) -> 103 | V28: 638 | W28: 0 | X28: 0 | Y28: 0 | Z28: 0 | AA28: 0 | AB28: =SUM(V28:AA28) -> 638
E30: `
A31: 2011학년도 2학기 학사운영 계획 청심국제중고등학교
A32: 월 | B32: 주 | C32: 2학기 주요 학사 일정 | U32: 수 업 일 수 | V32: 수업 시수
C33: 월요일 | F33: 화요일 | I33: 수요일 | L33: 목요일 | O33: 금요일 | R33: 토요일 | V33: 교 과 수 업 | W33: 특별활동 수업 | AB33: 합 계 시 수
W34: 자치 | X34: 적응 | Y34: 봉사 | Z34: 행사 | AA34: 계발
C35: 일자 | D35: 수업 시수 | E35: 행사 내용 | F35: 일자 | G35: 수업 시수 | H35: 행사 내용 | I35: 일자 | J35: 수업 시수 | K35: 행사 내용 | L35: 일자 | M35: 수업 시수 | N35: 행사 내용 | O35: 일자 | P35: 수업 시수 | Q35: 행사 내용 | R35: 일자 | S35: 수업 시수 | T35: 행사 내용
A37: 8 | C37: 15 | E37: 광복절 | F37: 16 | H37: 상반기 자산실사 (~20일) | I37: 17 | L37: 18 | O37: 19 | R37: 20 | U37: =COUNT(D37,G37,J37,M37,P37,S37) -> 0 | V37: =D37+G37+J37+M37+P37+S37 -> 0
B38: 1 | C38: 22 | D38: 7 | E38: 개학식 학급회장선거 | F38: 23 | G38: 7 | I38: 24 | J38: 7 | K38: 평가협의회 | L38: 25 | M38: 7 | N38: 성적관리위원회 | O38: 26 | P38: 6 | Q38: 평가계획서제출 | R38: 27 | T38: 토요휴업일 | U38: 5 | V38: 34
A39: 9 | B39: 2 | C39: 29 | D39: 7 | E39: 과제연구중간보고서제출 방과후학교시작 (중,국내) | F39: 30 | G39: 7 | I39: 31 | J39: 7 | K39: 전교회장선거 | L39: 1 | M39: 7 | N39: 과제연구중간심사 춘추복착용 수시지원전략워크샵(국내) | O39: 2 | P39: 6 | Q39: 중3고등학교선배와의 만남(중) 수시지원전략워크샵(국내) 수행평가캘린더 작성완료 | R39: 3 | S39: 2 | T39: 학부모 간담회 (국제) | U39: 6 | V39: 36
B40: 3 | C40: 5 | D40: 7 | F40: 6 | G40: 7 | I40: 7 | J40: 7 | L40: 8 | M40: 7 | N40: 수시접수(~12/8) | O40: 9 | P40: 6 | R40: 10 | T40: 토요휴업일 | U40: 5 | V40: 34
B41: 4 | C41: 12 | E41: 추석 | F41: 13 | H41: 추석 | I41: 14 | K41: 재량휴업일 | L41: 15 | M41: 7 | O41: 16 | P41: 6 | Q41: 명사특강 | R41: 17 | S41: 2 | T41: 학부모 진학간담회(중3) | U41: 3 | V41: 15
B42: 5 | C42: 19 | D42: 7 | F42: 20 | G42: 7 | H42: 축구/농구 토너먼트 (국제교류부) | I42: 21 | J42: 7 | K42: Peace One Day 행사 | L42: 22 | M42: 7 | O42: 23 | P42: 6 | R42: 24 | T42: 토요휴업일 | U42: 5 | V42: 34
A43: 10 | B43: 6 | C43: 26 | D43: 7 | F43: 27 | G43: 7 | I43: 28 | J43: 7 | K43: 평가협의회 | L43: 29 | M43: 7 | N43: 성적관리위원회 | O43: 30 | P43: 6 | Q43: 개교기념일 | R43: 1 | S43: 2 | T43: 학부모워크샵(중1,2) | U43: 6 | V43: 36
B44: 7 | C44: 3 | E44: 개천절 | F44: 4 | G44: 7 | H44: 동료교원평가(~7일) 중간고사 원안마감 | I44: 5 | J44: 7 | L44: 6 | M44: 7 | O44: 7 | P44: 6 | R44: 8 | T44: 토요휴업일 | U44: 4 | V44: 27
B45: 8 | C45: 10 | D45: 7 | F45: 11 | G45: 3 | H45: 중간고사 (고3기말공통) | I45: 12 | J45: 3 | K45: 중간고사 (고3국내기말) | L45: 13 | M45: 3 | N45: 중간고사 (고3국내기말) | O45: 14 | P45: 2 | Q45: 중간고사 (고3국내기말) | R45: 15 | S45: 2 | T45: PSAT | U45: 6 | V45: 20
B46: 9 | C46: 17 | D46: 7 | E46: 세계 RS 컨퍼런스 -영국(~21일) 도서관 행사(추천도서 한줄 서평 쓰기) | F46: 18 | G46: 7 | I46: 19 | J46: 7 | K46: 개인능력개발계획서작성(~28일) 성적처리 | L46: 20 | M46: 7 | N46: 성적처리 | O46: 21 | P46: 6 | Q46: 가을문화체험 (중,고) 성적확인 마감 | R46: 22 | T46: 토요휴업일 | U46: 5 | V46: 34
B47: 10 | C47: 24 | D47: 7 | E47: 우수학급시상(중) 컨퍼런스 후활동 (28일) | F47: 25 | G47: 7 | I47: 26 | J47: 7 | K47: 평가협의회 | L47: 27 | M47: 7 | N47: 성적관리위원회 | O47: 28 | P47: 6 | R47: 29 | S47: 2 | T47: 학부모워크샵(국제) | U47: 6 | V47: 36
A48: 11 | B48: 11 | C48: 31 | D48: 7 | E48: 사업계획협의회(1차) 기말고사원안마감 (고3국제) 해외대학수시마감 | F48: 1 | G48: 7 | H48: 동복착용 | I48: 2 | J48: 7 | K48: 교직원성희롱 예방교육 | L48: 3 | M48: 7 | O48: 4 | P48: 6 | R48: 5 | S48: 2 | U48: 6 | V48: 36
B49: 12 | C49: 7 | D49: 7 | E49: 고3국제기말 사업계획협의회(2차) | F49: 8 | G49: 7 | H49: 고3국제기말 | I49: 9 | J49: 7 | K49: 고3국제기말 | L49: 10 | M49: 7 | N49: 수학능력시험 | O49: 11 | P49: 6 | Q49: 4차 학교운영위원회 (중,고) | R49: 12 | T49: 토요휴업일 | U49: 5 | V49: 34
B50: 13 | C50: 14 | D50: 7 | E50: 모범학생표창(중,고) | F50: 15 | G50: 7 | I50: 16 | J50: 7 | L50: 17 | M50: 7 | N50: 성적확인마감 | O50: 18 | P50: 6 | Q50: 예비고1학생 학습계획특강(중) | R50: 19 | S50: 2 | U50: 6 | V50: 36
B51: 14 | C51: 21 | D51: 7 | E51: 책읽는사진공모전 | F51: 22 | G51: 7 | I51: 23 | J51: 7 | K51: 기말고사원안마감 (중3) | L51: 24 | M51: 7 | O51: 25 | P51: 6 | Q51: 예비고1학부모 워크숍(중) | R51: 26 | T51: 토요휴업일 | U51: 5 | V51: 34
A52: 12 | B52: 15 | C52: 28 | D52: 7 | F52: 29 | G52: 7 | I52: 30 | J52: 7 | K52: 기말고사(중3) 평가협의회 | L52: 1 | M52: 7 | N52: 기말고사(중3) 성적관리위원회 | O52: 2 | P52: 6 | Q52: 기말고사(중3) | R52: 3 | S52: 2 | U52: 6 | V52: 36
B53: 16 | C53: 5 | D53: 7 | F53: 6 | G53: 7 | I53: 7 | J53: 7 | K53: 성적처리 | L53: 8 | M53: 7 | N53: 성적확인 마감 | O53: 9 | P53: 6 | Q53: 전체교직원 동계연수 | R53: 10 | T53: 토요휴업일 전체교직원 동계연수(~11) | U53: 5 | V53: 34
B54: 17 | C54: 12 | D54: 7 | E54: 수시 등록 | F54: 13 | G54: 7 | H54: 수시 등록 | I54: 14 | J54: 3 | K54: 수시 등록 | L54: 15 | M54: 3 | O54: 16 | P54: 3 | Q54: 5차 학교운영위원회 (중,고) | R54: 17 | S54: 2 | U54: 6 | V54: 25
B55: 18 | C55: 19 | D55: 7 | F55: 20 | G55: 7 | H55: 기말고사 | I55: 21 | J55: 7 | K55: 기말고사 | L55: 22 | M55: 7 | N55: 기말고사 | O55: 23 | P55: 6 | Q55: 기말고사 | R55: 24 | T55: 토요휴업일 | U55: 5 | V55: 34
B56: 19 | C56: 26 | D56: 7 | E56: NEIS입력 스키캠프(중,고) | F56: 27 | G56: 7 | H56: 성적처리 | I56: 28 | J56: 7 | K56: NEIS학생확인 성적확인 마감 | L56: 29 | M56: 7 | N56: 승단심사 성적관리위원회 작은음악회 | O56: 30 | P56: 4 | Q56: 방학식 | R56: 31 | T56: 해외대학 정시마감 | U56: 5
A57: 2 | C57: 6 | F57: 7 | I57: 8 | L57: 9 | O57: 10 | R57: 11 | T57: 토요휴업일 | U57: 0
B58: 20 | C58: 13 | E58: 신입생 OT | F58: 14 | H58: 신입생 OT | I58: 15 | K58: 신입생 OT | L58: 16 | M58: 7 | N58: 개학식 NEIS최종입력 | O58: 17 | P58: 6 | Q58: 진급 사정회 | R58: 18 | S58: 2 | T58: 졸업식 | U58: 3 | V58: =D58+G58+J58+M58+P58+S58 -> 15
C59: 20 | F59: 21 | I59: 22 | L59: 23 | O59: 24 | R59: 25 | T59: 토요휴업일 | U59: 0 | V59: =D59+G59+J59+M59+P59+S59 -> 0
B60: 21 | C60: 27 | E60: 교직원 연수(~28) | F60: 28 | H60: 전교생귀교일 | I60: 29 | J60: 4 | K60: 입학식/개학식 | L60: 1 | N60: 삼일절 | O60: 2 | U60: 1
A61: 2학기 합계 | D61: =SUM(D37:D59) -> 119 | G61: =SUM(G37:G59) -> 122 | J61: =SUM(J37:J59) -> 118 | M61: =SUM(M37:M59) -> 132 | P61: =SUM(P37:P59) -> 111 | S61: =SUM(S37:S59) -> 20 | U61: =SUM(U37:U60) -> 104 | V61: =SUM(V37:V59) -> 590 | W61: 0 | X61: 0 | Y61: 0 | Z61: 0 | AA61: 0
A62: 1년 합계 | D62: =SUM('2011'!D61,D61) -> 238 | G62: =SUM('2011'!G61,G61) -> 244 | J62: =SUM('2011'!J61,J61) -> 236 | M62: =SUM('2011'!M61,M61) -> 264 | P62: =SUM('2011'!P61,P61) -> 222 | S62: =SUM('2011'!S61,S61) -> 40 | U62: =U28+U61 -> 207 | V62: =SUM('2011'!V28,V61) -> 1228 | W62: =SUM('2011'!W28,W61) -> 0 | X62: =SUM('2011'!X28,X61) -> 0 | Y62: =SUM('2011'!Y28,Y61) -> 0 | Z62: =SUM('2011'!Z28,Z61) -> 0 | AA62: =SUM('2011'!AA28,AA61) -> 0

Sheet 교직원동계연수 (hidden)
A1: 청심국제중고등학교 전체교원 동계연수 일정표
A2: 일시 : 12.9(금)~12.10(토)(1박 2일)
A3: 시간 | B3: 12월 9일 (금) | G3: 12월 10일 (토) | L3: * 우리학교의 인재상 (어떤 학생으로 키울것인가?) * 윤리경영 - 청심의 경영 계획 및 리스크 관리 - 청심기획조정실 법무/ 경영진단팀 김순영팀장 * 창의성 연수 프로그램 - 켄트 김 010-8959-7722 학력 하버드대학 경제학과 경력 동아일보 "하버드맨" 연재 저서 켄트김의 베리타스(VERITAS) 학벌이아닌 진짜공부를해라 하버드에서 열정을 찾다 나도 하버드에 갈수있다. 멈추어 서기엔 너무 젊은 한국인에게 보내는 60초 편지 등 * 학력 신장 방안 프로그램 - 아침 자습 / 방과후 / 야간 자습 / 주말 학교 / 과목별 등 * 수업 역량 강화 프로그램 - 교과별 6년 교육과정 정립 → 2012학년도 효과적인 수업 방안 모색 - 교과별 교재 개발 업그레이드 - 2012 1학기 교과 편제표 작성 * 학생지도 역량 강화 프로그램 - 2011학년도 사안 중심 지도 현황 공유 - 2012학년도 학생지도의 효율화를 위한 방향 재정립 * 학년 체제 및 담임 교사 역량 강화 프로그램 - 2011학년도 학년 운영 현황 반성 - 2012학년도 학년 중심 체제의 중심 역할 공유 - 2012학년도 담임 교사의 중점적 역할 * 행복한 학교 만들기 프로젝트 ⑴ 팀별 10명 정도 단위. 6개조[교장, 교감 제외] ⑵ 협의 장소 : 교내 특별실(교직원 회의실, 교직원휴게실(남 / 여) 도서실, 406호, 과학실(4층)) ⑶ 협의 내용 ① 학교생활 전반에 대해 발전적인 방향으로 제시 가능한 사항 ② 교사의 측면과 학생의 측면 및 함께 하는 측면으로 구성 ③ 주중 활동과 주말 활동으로 구분하여 구성 ④ 체험이나 봉사활동, 체육·문화 활동 등의 폭넓은 구성 ⑤ 현실적인 시행 가능성을 염두에 두고 구성할 것 ⑥ 현재 시행해보지 않은 신선한 활동들 중심으로 제시 ⑦ 현재 시행하고 있는 활동들의 경우 개선 사항 중심으로 제시 ⑧ 2학기부터라도 시행할 수 있는 여건을 고려하여 제시 ⑷ 발표 : PPT 또는 전지 시행 목적, 대상, 시기, 방법, 제한 조건/필요 조건, 문제점, 해결 방법 등
A5: 07:30~08:00 | B5: 1~4교시 | G5: 조식
A6: 08:00~08:30 | G6: 수업 역량 강화 _ 교과연구부장
A7: 08:30~09:00 | G7: ① 수업 역량 강화를 위한 교과별 로드맵 공유 및 완료 ② 교재 개발 현황 협의 및 교재 개선 방안 ③ 2012학년도 교과 편제표 작성 "교과별 로드맵/교과 편제표"
A8: 09:00~09:30
A9: 09:30~10:00 | G9: 학생지도 역량 강화 _ 인성계발부장 = 학생지도의 현황 및 방향 재정립 =
A10: 10:00~10:30
A11: 10:30~11:00 | G11: 학년 체제의 강화와 담임 교사의 중점적 역할 = 2012학년도 학년 운영 방안 = "회의록"
A12: 11:00~11:30
A13: 11:30~12:00 | B13: 중식 | G13: 중식
A14: 12:00~12:30
A15: 12:30~13:00 | B15: 5~6교시 | G15: 학력 신장 방안 연구 협의회
A16: 13:00~13:30 | G16: 2011 학력 현황 반성 및 2012 학력 신장 방안 협의회 (중/국내/국제) "협의록"
A17: 13:30~14:00
A18: 14:00~14:30 | B18: 귀가 지도 | G18: Break Time
A19: 14:30~15:00 | G19: 행복한 학교 만들기 프로젝트 < 팀별 활동 - 1h> _ 6팀 구성
A20: 15:00~15:30 | B20: 업무 정리
A21: 15:30~16:00 | B21: 오리엔테이션 | G21: 행복한 학교 만들기 프로젝트 <팀별 5분 발표>
A22: 16:00~16:30 | B22: " 특강 " 우리학교의 인재상_교장선생님 = 어떤학생으로 키울것인가? = | G22: Break Time
A23: 16:30~17:00 | G23: 각종 협의 결과 발표 ①학력 신장 방안 ②교과별 로드맵 ③ 학년 운영 방안
A24: 17:00~17:30 | B24: 윤리 경영 청심 기획조정실 법무/경영진단팀장
A25: 17:30~18:00 | G25: 교장선생님 말씀/사진 촬영
A26: 18:00~18:30 | B26: 석식
A27: 18:30~19:00
A28: 19:00~19:30 | B28: " 특강 " 내가 생각하는 바람직한 인재상 켄트 김
A29: 19:30~20:00
A31: 20:00~20:30
A32: 20:30~21:00

Sheet OT 계획 (hidden)
A1: 청심국제중고등학교 신입생 OT 일정표
A2: 일시 : 2월 29일 ~ 3월 2일
A3: 시간 | B3: 1일차 (2월 29일) | C3: 2일차 (3월 1일) | D3: 3일차 (3월 2일)
A6: 06:30~07:00 | B6: 조식 | E6: 협의사항 * 리더쉽 캠프 진행
A7: 07:00~07:30 | C7: 아침기강 및 운동
A8: 07:30~08:00 | B8: 담임과의 시간 (세부 운영 계획)
A9: 08:00~08:30 | C9: 조식 및 세면
A10: 08:30~09:00
A11: 09:00~09:30 | B11: 체육관 집결 | C11: 서클타임/ 오늘의 계획 작성, 건강 체크
A12: 09:30~10:00 | C12: 성취 인식 (마술의 공식을 사용한 발표) | D12: 칭찬파워 (나의 장점발견 & 타인의 장점 발견)
A13: 10:00~10:30 | B13: 입학식
A14: 10:30~11:00
A15: 11:00~11:30 | D15: 코스에서 얻은 혁신적인 성과
A16: 11:30~12:00 | B16: 중 식 (업체논의 후) | C16: 협력을 얻어내는 원칙 (도전 챌린지)
A17: 12:00~12:30 | D17: 중 식
A18: 12:30~13:00 | B18: 청심국제청소년 수련원 이동 | C18: 증 식
A19: 13:00~13:30 | D19: 수료식
A20: 13:30~14:00 | B20: 입소식 및 OT | C20: 명확한 의사 전달 (Lions 공식을 사용한 전달법) | D20: 귀 교
A21: 14:00~14:30 | B21: 성공의 기초 & 이름 기억법
A22: 14:30~15:00 | D22: 귀가 버스 탑승
A23: 15:00~15:30 | B23: 용기개발 (장기비전 설정)
A24: 15:30~16:00 | C24: 열정 공약 (목표와 비젼 설정)
A25: 16:00~16:30 | B25: 자신감 증진 (어린시절 발표)
A26: 16:30~17:00
A27: 17:00~17:30 | B27: 인간관계 증진 (Pegging 암기법) | C27: 걱정 스트레스 조절 (걱정, 스트레스 극복 원칙)
A28: 17:30~18:00
A29: 18:00~18:30 | B29: 석 식
A30: 18:30~19:00 | C30: 석 식
A31: 19:00~19:30 | B31: 담임과의 시간 "하루일과"
A32: 19:30~20:00 | B32: 환영 레크레이션 | C32: 우리 모두하나되어 (전체공연 및 레크레이션) "학년부장 및 담임교사 참석"
A33: 20:00~20:30
A34: 20:30~21:00
A35: 21:00~21:30
A36: 21:30~22:00 | B36: 오늘의 정리

Sheet 2019학년도
A1: 2019학년도 학사운영 계획 ver.18
A2: 청심국제중고등학교
A3: 월 | B3: 주 | C3: 1학기 주요 학사 일정 | AU3: 수 업 일 수 | AV3: 중3고3수업일수 | AW3: 학기별 주간 수업 시수 | BI3: 영역별 활동시수
C4: 월요일 | K4: 화요일 | S4: 수요일 | AA4: 목요일 | AI4: 금요일 | AQ4: 토요일 | AS4: 일요일 | AW4: 학기별 교과 수업 시수 | BC4: 창체 | BE4: 재량 | BF4: 창체 | BH4: 재량 | BI4: 중1 | BN4: 중2 | BS4: 중3 | BX4: 고1 | CC4: 고2 | CH4: 고3 | CM4: 특별활동 수업
CM5: 활동 | CN5: 세부내용
C6: 일자 | D6: 수업 시수 | J6: 행사 내용 | K6: 일자 | L6: 수업 시수 | R6: 행사 내용 | S6: 일자 | T6: 수업 시수 | Z6: 행사 내용 | AA6: 일자 | AB6: 수업 시수 | AH6: 행사 내용 | AI6: 일자 | AJ6: 수업 시수 | AP6: 행사 내용 | AQ6: 일자 | AR6: 행사 내용 | AS6: 일자 | AT6: 행사 내용 | AW6: 중1 | AX6: 중2 | AY6: 중3 | AZ6: 고1 | BA6: 고2 | BB6: 고3
D7: 중 1 | E7: 중 2 | F7: 중 3 | G7: 고 1 | H7: 고 2 | I7: 고 3 | L7: 중 1 | M7: 중 2 | N7: 중 3 | O7: 고 1 | P7: 고 2 | Q7: 고 3 | T7: 중 1 | U7: 중 2 | V7: 중 3 | W7: 고 1 | X7: 고 2 | Y7: 고 3 | AB7: 중 1 | AC7: 중 2 | AD7: 중 3 | AE7: 고 1 | AF7: 고 2 | AG7: 고 3 | AJ7: 중 1 | AK7: 중 2 | AL7: 중 3 | AM7: 고 1 | AN7: 고 2 | AO7: 고 3 | AW7: 527 | AX7: 510 | AY7: 544 | AZ7: 510 | BA7: 510 | BB7: 578 | BC7: 51 | BD7: 51 | BE7: 34 | BF7: 68 | BG7: 68 | BH7: 17 | BI7: 자율 | BJ7: 동아 | BK7: 봉사 | BL7: 진로 | BM7: 행사 | BN7: 자율 | BO7: 동아 | BP7: 봉사 | BQ7: 진로 | BR7: 행사 | BS7: 자치 | BT7: 적응 | BU7: 봉사 | BV7: 동아 | BW7: 행사 | BX7: 자율 | BY7: 동아 | BZ7: 봉사 | CA7: 진로 | CB7: 행사 | CC7: 자율 | CD7: 동아 | CE7: 봉사 | CF7: 진로 | CG7: 행사 | CH7: 자율 | CI7: 동아 | CJ7: 봉사 | CK7: 진로 | CL7: 행사
A8: 3 | B8: 1 | AI8: 1 | AP8: 삼일절 | AQ8: 2 | AS8: 3 | AU8: =COUNTA(D8,L8,T8,AB8,AJ8) -> 0 | AV8: =COUNTA(F8,N8,V8,AD8,AL8) -> 0 | AW8: =D8+L8+T8+AB8+AJ8 -> 0 | AX8: =E8+M8+U8+AC8+AK8 -> 0 | AY8: =F8+N8+V8+AD8+AL8 -> 0 | AZ8: =G8+O8+W8+AE8+AM8 -> 0 | BA8: =H8+P8+X8+AF8+AN8 -> 0 | BB8: =I8+Q8+Y8+AG8+AO8 -> 0 | BC8: 3 | BD8: 3 | BE8: 2 | BF8: 4 | BG8: 4 | BH8: 1
B9: 2 | C9: 4 | D9: 1 | F9: 1 | J9: 입학식 (중1)자유학년제 (중2)연계자유학년제 학급회장선거 동아리 등록 신청 | K9: 5 | L9: 1 | N9: 1 | R9: 교과교육과정계획서 제출 | S9: 6 | T9: 1 | V9: 1 | AA9: 7 | AB9: 1 | AD9: 1 | AH9: 고3 모의고사 (서울시교육청) | AI9: 8 | AJ9: 1 | AL9: 1 | AP9: 안전교육계획 수립 (중)(고) 학교운영위원회 개최예정 (고)학부모총회 | AQ9: 9 | AR9: SAT | AS9: 10 | AU9: 5 | AV9: =COUNTA(F9,N9,V9,AD9,AL9) -> 5 | AW9: 5 | AX9: 0 | AY9: 5 | AZ9: 0 | BA9: 0 | BB9: 0 | BC9: 3 | BD9: 3 | BE9: 2 | BF9: 4 | BG9: 4 | BH9: 1
B10: 3 | C10: 11 | D10: 1 | F10: 1 | J10: (중)방과후학교/1인1악기 개강 GLTC 관계형성프로젝트 시작 | K10: 12 | L10: 1 | N10: 1 | R10: GLTC 시니어 모니터 선출 | S10: 13 | T10: 1 | V10: 1 | AA10: 14 | AB10: 1 | AD10: 1 | AI10: 15 | AJ10: 1 | AL10: 1 | AP10: 중1,고1 심리검사진행 (중)학부모총회 동아리 등록 신청 마감 | AQ10: 16 | AS10: 17 | AT10: 시니어모니터 회의 | AU10: 5 | AV10: 5 | AW10: 5 | AX10: 0 | AY10: 5 | AZ10: 0 | BA10: 0 | BB10: 0 | BC10: 3 | BD10: 3 | BE10: 2 | BF10: 4 | BG10: 4 | BH10: 1
B11: 4 | C11: 18 | D11: 1 | F11: 1 | J11: 당선증 수여식 | K11: 19 | L11: 1 | N11: 1 | S11: 20 | T11: 1 | V11: 1 | AA11: 21 | AB11: 1 | AD11: 1 | AI11: 22 | AJ11: 1 | AL11: 1 | AQ11: 23 | AS11: 24 | AU11: 5 | AV11: 5 | AW11: 5 | AX11: 0 | AY11: 5 | AZ11: 0 | BA11: 0 | BB11: 0 | BC11: 3 | BD11: 3 | BE11: 2 | BF11: 4 | BG11: 4 | BH11: 1
B12: 5 | C12: 25 | D12: 1 | F12: 1 | J12: 칭찬의 날 | K12: 26 | L12: 1 | N12: 1 | S12: 27 | T12: 1 | V12: 1 | AA12: 28 | AB12: 1 | AD12: 1 | AH12: 목요음악회 GLTC 화재대피훈련 | AI12: 29 | AJ12: 1 | AL12: 1 | AP12: (중)(고)학교운영위원회의 개최예정동아리 부원 등록 마감 학폭위구성완료 과제연구대회 계획서 제출 마감 전원귀가 인성지도 생기부-3월 출결마감 | AQ12: 30 | AS12: 31 | AU12: 5 | AV12: 5 | AW12: 5 | AX12: 0 | AY12: 5 | AZ12: 0 | BA12: 0 | BB12: 0 | BC12: 3 | BD12: 3 | BE12: 2 | BF12: 4 | BG12: 4 | BH12: 1
A13: 4 | B13: 6 | C13: 1 | D13: 1 | F13: 1 | J13: 체인지훈련 | K13: 2 | L13: 1 | N13: 1 | S13: 3 | T13: 1 | V13: 1 | AA13: 4 | AB13: 1 | AD13: 1 | AH13: (중)챌린지데이 목요음악회 | AI13: 5 | AJ13: 1 | AL13: 1 | AP13: (중)(고)학교운영위원회의 개최예정 학폭위 정기회의 정서헹동특성검사(중1,고1) 청렴집합교육(교직원) 결석계 제출 마감 | AQ13: 6 | AS13: 7 | AU13: 5 | AV13: 5 | AW13: 5 | AX13: 0 | AY13: 5 | AZ13: 0 | BA13: 0 | BB13: 0 | BC13: 3 | BD13: 3 | BE13: 2 | BF13: 4 | BG13: 4 | BH13: 1
B14: 7 | C14: 8 | D14: 1 | F14: 1 | J14: 학교폭력예방교육 (중)학부모상담주간(~19일) | K14: 9 | L14: 1 | N14: 1 | S14: 10 | T14: 1 | V14: 1 | Z14: 지필평가 원안제출 마감 고3 모의고사 (경기도교육청) | AA14: 11 | AB14: 1 | AD14: 1 | AH14: 목요음악회 | AI14: 12 | AJ14: 1 | AL14: 1 | AP14: 학교 방문의 날 | AQ14: 13 | AS14: 14 | AU14: 5 | AV14: 5 | AW14: 5 | AX14: 0 | AY14: 5 | AZ14: 0 | BA14: 0 | BB14: 0 | BC14: 3 | BD14: 3 | BE14: 2 | BF14: 4 | BG14: 4 | BH14: 1
B15: 8 | C15: 15 | D15: 1 | F15: 1 | K15: 16 | L15: 1 | N15: 1 | S15: 17 | T15: 1 | V15: 1 | AA15: 18 | AB15: 1 | AD15: 1 | AI15: 19 | AJ15: 1 | AL15: 1 | AP15: 성희롱,성폭력 예방교육(교직원) 급식소 위원회 | AQ15: 20 | AS15: 21 | AU15: 5 | AV15: 5 | AW15: 5 | AX15: 0 | AY15: 5 | AZ15: 0 | BA15: 0 | BB15: 0 | BC15: 3 | BD15: 3 | BE15: 2 | BF15: 4 | BG15: 4 | BH15: 1
B16: 9 | C16: 22 | D16: 1 | F16: 1 | J16: 칭찬의 날 | K16: 23 | L16: 1 | N16: 1 | S16: 24 | T16: 1 | V16: 1 | Z16: 1학기 1차지필 | AA16: 25 | AB16: 1 | AD16: 1 | AH16: 1학기 1차지필 | AI16: 26 | AJ16: 1 | AL16: 1 | AP16: 1학기 1차지필 전원귀가 인성지도 | AQ16: 27 | AS16: 28 | AU16: 5 | AV16: 5 | AW16: 5 | AX16: 0 | AY16: 5 | AZ16: 0 | BA16: 0 | BB16: 0 | BC16: 2 | BD16: 0 | BE16: 0 | BF16: 1 | BG16: 2 | BH16: 0
A17: 5 | B17: 10 | C17: 29 | J17: 재량휴업일 | K17: 30 | R17: 재량휴업일 | S17: 1 | Z17: 근로자의 날 재량휴업일 | AA17: 2 | AB17: 1 | AD17: 1 | AH17: 생기부-4월 출결마감 | AI17: 3 | AJ17: 1 | AL17: 1 | AP17: (중)(고)학교운영위원회의 개최예정 동아리보고서제출 학교 탐방의 날 결석계 제출 마감 | AQ17: 4 | AR17: SAT | AS17: 5 | AU17: 2 | AV17: 2 | AW17: 2 | AX17: 0 | AY17: 2 | AZ17: 0 | BA17: 0 | BB17: 0 | BC17: 3 | BD17: 3 | BE17: 2 | BF17: 4 | BG17: 4 | BH17: 1
B18: 11 | C18: 6 | J18: 대체공휴일 AP TEST | K18: 7 | L18: 1 | N18: 1 | R18: AP TEST | S18: 8 | T18: 1 | V18: 1 | Z18: AP TEST | AA18: 9 | AB18: 1 | AD18: 1 | AH18: AP TEST | AI18: 10 | AJ18: 1 | AL18: 1 | AP18: AP TEST | AQ18: 11 | AS18: 12 | AU18: 4 | AV18: 4 | AW18: 4 | AX18: 0 | AY18: 4 | AZ18: 0 | BA18: 0 | BB18: 0 | BC18: 3 | BD18: 3 | BE18: 2 | BF18: 4 | BG18: 4 | BH18: 1
B19: 12 | C19: 13 | D19: 1 | F19: 1 | J19: AP TEST | K19: 14 | L19: 1 | N19: 1 | R19: AP TEST | S19: 15 | T19: 1 | V19: 1 | Z19: AP TEST | AA19: 16 | AB19: 1 | AD19: 1 | AH19: AP TEST | AI19: 17 | AJ19: 1 | AL19: 1 | AP19: AP TEST | AQ19: 18 | AS19: 19 | AU19: 5 | AV19: 5 | AW19: 5 | AX19: 0 | AY19: 5 | AZ19: 0 | BA19: 0 | BB19: 0 | BC19: 1 | BD19: 0 | BE19: 0 | BF19: 1 | BG19: 1 | BH19: 0
B20: 13 | C20: 20 | D20: 1 | F20: 1 | J20: 꿈끼탐색주간(중,고) | K20: 21 | L20: 1 | N20: 1 | R20: 꿈끼탐색주간(중,고) | S20: 22 | T20: 1 | V20: 1 | Z20: LATE AP TEST 꿈끼탐색주간(중,고) | AA20: 23 | AB20: 1 | AD20: 1 | AH20: LATE AP TEST 꿈끼탐색주간(중,고) | AI20: 24 | AJ20: 1 | AL20: 1 | AP20: LATE AP TEST 전원귀가 꿈끼탐색주간(중,고) 인성지도 | AQ20: 25 | AS20: 26 | AU20: 5 | AV20: 5 | AW20: 5 | AX20: 0 | AY20: 5 | AZ20: 0 | BA20: 0 | BB20: 0 | BC20: 2 | BD20: 3 | BE20: 2 | BF20: 3 | BG20: 3 | BH20: 1
A21: 6 | B21: 14 | C21: 27 | D21: 1 | F21: 1 | J21: 학교폭력 실태조사 | K21: 28 | L21: 1 | N21: 1 | S21: 29 | T21: 1 | V21: 1 | AA21: 30 | AB21: 1 | AD21: 1 | AH21: 체력검사 | AI21: 31 | AJ21: 1 | AL21: 1 | AP21: 학교 방문의 날 생기부-5월 출결 마감/점검(인적, 학적, 진로희망사항) 개인정보보호교육(교직원) | AQ21: 1 | AR21: SAT | AS21: 2 | AU21: 5 | AV21: 5 | AW21: 5 | AX21: 0 | AY21: 5 | AZ21: 0 | BA21: 0 | BB21: 0 | BC21: 3 | BD21: 3 | BE21: 1 | BF21: 3 | BG21: 4 | BH21: 1
B22: 15 | C22: 3 | D22: 1 | F22: 1 | J22: 칭찬의 날 | K22: 4 | L22: 1 | N22: 1 | R22: 고1,2 모의고사 (부산시교육청) 고3 모의고사 (평가원) | S22: 5 | T22: 1 | V22: 1 | Z22: 가평교육지원청 진로체험박람회 전원귀가 | AA22: 6 | AH22: 현충일 | AI22: 7 | AP22: 재량휴업일 모교방문의 날 | AQ22: 8 | AS22: 9 | AU22: 3 | AV22: 3 | AW22: 3 | AX22: 0 | AY22: 3 | AZ22: 0 | BA22: 0 | BB22: 0 | BC22: 3 | BD22: 3 | BE22: 2 | BF22: 4 | BG22: 4 | BH22: 1
B23: 16 | C23: 10 | D23: 1 | F23: 1 | J23: 체인지훈련 결석계 제출 마감 | K23: 11 | L23: 1 | N23: 1 | S23: 12 | T23: 1 | V23: 1 | Z23: 수업공개기간 | AA23: 13 | AB23: 1 | AD23: 1 | AH23: 목요음악회 수업공개기간 GLTC 관계형성 프로젝트 마무리 | AI23: 14 | AJ23: 1 | AL23: 1 | AP23: 수업공개기간 학폭위 정기회의 학교 탐방의 날 | AQ23: 15 | AS23: 16 | AU23: 5 | AV23: 5 | AW23: 5 | AX23: 0 | AY23: 5 | AZ23: 0 | BA23: 0 | BB23: 0 | BC23: 3 | BD23: 3 | BE23: 2 | BF23: 4 | BG23: 4 | BH23: 1
B24: 17 | C24: 17 | D24: 1 | F24: 1 | K24: 18 | L24: 1 | N24: 1 | R24: 교외입학설명회 | S24: 19 | T24: 1 | V24: 1 | Z24: 지필평가 원안제출 마감 교외입학설명회 | AA24: 20 | AB24: 1 | AD24: 1 | AH24: 교외입학설명회 목요음악회 | AI24: 21 | AJ24: 1 | AL24: 1 | AP24: (중,고)방과후학교/1인1악기 종강 | AQ24: 22 | AS24: 23 | AU24: 5 | AV24: 5 | AW24: 5 | AX24: 0 | AY24: 5 | AZ24: 0 | BA24: 0 | BB24: 0 | BC24: 3 | BD24: 3 | BE24: 2 | BF24: 4 | BG24: 4 | BH24: 1
B25: 18 | C25: 24 | D25: 1 | F25: 1 | K25: 25 | L25: 1 | N25: 1 | S25: 26 | T25: 1 | V25: 1 | AA25: 27 | AB25: 1 | AD25: 1 | AH25: 목요음악회 | AI25: 28 | AJ25: 1 | AL25: 1 | AP25: (중)(고)학교운영위원회의 개최예정 생기부-6월 출결마감 및 입력(과목별/개인별 세특, 독서활동) | AQ25: 29 | AS25: 30 | AU25: 5 | AV25: 5 | AW25: 5 | AX25: 0 | AY25: 5 | AZ25: 0 | BA25: 0 | BB25: 0 | BC25: 2 | BD25: 0 | BE25: 0 | BF25: 1 | BG25: 2 | BH25: 0
A26: 7 | B26: 19 | C26: 1 | D26: 1 | F26: 1 | J26: 생기부-교차검토 및 수정(전체항목)(~7/12) | K26: 2 | L26: 1 | N26: 1 | R26: 1학기 2차지필 | S26: 3 | T26: 1 | V26: 1 | Z26: 1학기 2차지필 | AA26: 4 | AB26: 1 | AD26: 1 | AH26: 1학기 2차지필 | AI26: 5 | AJ26: 1 | AL26: 1 | AP26: 1학기 2차지필 전원귀가 인성지도 결석계 제출 마감 | AQ26: 6 | AS26: 7 | AU26: 5 | AV26: 5 | AW26: 5 | AX26: 0 | AY26: 5 | AZ26: 0 | BA26: 0 | BB26: 0 | BC26: 3 | BD26: 3 | BE26: 2 | BF26: 4 | BG26: 4 | BH26: 1
B27: 20 | C27: 8 | D27: 1 | F27: 1 | J27: GLTC 호실추첨 | K27: 9 | L27: 1 | N27: 1 | S27: 10 | T27: 1 | V27: 1 | Z27: 고3 모의고사 (인천시교육청) 합동유세 | AA27: 11 | AB27: 1 | AD27: 1 | AH27: 승단심사 | AI27: 12 | AJ27: 1 | AL27: 1 | AP27: 학생회장 선거 동아리보고서제출 전원귀가 과제연구대회 중간보고서 제출 마감 아동학대예방 및 신고의무자교육/장애인식 개선교육(교직원) | AQ27: 13 | AS27: 14 | AT27: 시니어모니터 회의 | AU27: 5 | AV27: 5 | AW27: 5 | AX27: 0 | AY27: 5 | AZ27: 0 | BA27: 0 | BB27: 0 | BC27: 4 | BD27: 4 | BE27: 4 | BF27: 4 | BG27: 4 | BH27: 3 | CM27: 행사 2 | CN27: 방학식
B28: 21 | C28: 15 | D28: 1 | F28: 1 | K28: 16 | L28: 1 | N28: 1 | R28: 청심제 | S28: 17 | T28: 1 | V28: 1 | Z28: 청심제 생기부-7월 출결마감/1학기 마감 | AA28: 18 | AB28: 1 | AD28: 1 | AH28: 여름방학식 결석계 제출 마감 | AI28: 19 | AP28: 여름방학 | AQ28: 20 | AS28: 21 | AT28: 영어캠프(~8/9) | AU28: 4 | AV28: 4 | AW28: =D28+L28+T28+AB28+AJ28 -> 4 | AY28: 4
B29: 22 | C29: 22 | J29: 여름방학 | K29: 23 | R29: 여름방학 | S29: 24 | Z29: 여름방학 | AA29: 25 | AH29: 여름방학 고-학생부 점검(예정) | AI29: 26 | AP29: 여름방학 중-학생부 점검(예정) | AQ29: 27 | AS29: 28 | AU29: 0 | AV29: 0 | AW29: =D29+L29+T29+AB29+AJ29 -> 0
A30: 8 | B30: 23 | C30: 29 | J30: 여름방학 | K30: 30 | R30: 여름방학 | S30: 31 | Z30: 여름방학 | AA30: 1 | AH30: 여름방학 | AI30: 2 | AP30: 여름방학 | AQ30: 3 | AS30: 4 | AU30: 0 | AV30: 0 | AW30: =D30+L30+T30+AB30+AJ30 -> 0
B31: 24 | C31: 5 | J31: 여름방학 | K31: 6 | R31: 여름방학 | S31: 7 | Z31: 여름방학 | AA31: 8 | AH31: 여름방학 | AI31: 9 | AP31: 여름방학 | AQ31: 10 | AS31: 11 | AU31: 0 | AV31: 0
A32: 1학기 합계 | D32: =COUNTA(D8:D31)&"/"&SUM(D8:D31) -> 18/18 | E32: =COUNTA(E8:E27)&"/"&SUM(E8:E27) -> 0/0 | F32: =COUNTA(F8:F31)&"/"&SUM(F8:F31) -> 18/18 | G32: 0/0 | H32: 0/0 | I32: 0/0 | L32: =COUNTA(L8:L31)&"/"&SUM(L8:L31) -> 19/19 | M32: =COUNTA(M8:M27)&"/"&SUM(M8:M27) -> 0/0 | N32: =COUNTA(N8:N31)&"/"&SUM(N8:N31) -> 19/19 | O32: 0/0 | P32: 0/0 | Q32: 0/0 | T32: =COUNTA(T8:T31)&"/"&SUM(T8:T31) -> 19/19 | U32: =COUNTA(U8:U27)&"/"&SUM(U8:U27) -> 0/0 | V32: =COUNTA(V8:V31)&"/"&SUM(V8:V31) -> 19/19 | W32: 0/0 | X32: 0/0 | Y32: 0/0 | AB32: =COUNTA(AB8:AB31)&"/"&SUM(AB8:AB31) -> 19/19 | AC32: =COUNTA(AC8:AC27)&"/"&SUM(AC8:AC27) -> 0/0 | AD32: =COUNTA(AD8:AD31)&"/"&SUM(AD8:AD31) -> 19/19 | AE32: 0/0 | AF32: 0/0 | AG32: 0/0 | AJ32: =COUNTA(AJ8:AJ31)&"/"&SUM(AJ8:AJ31) -> 18/18 | AK32: =COUNTA(AK8:AK27)&"/"&SUM(AK8:AK27) -> 0/0 | AL32: =COUNTA(AL8:AL31)&"/"&SUM(AL8:AL31) -> 18/18 | AM32: 0/0 | AN32: 0/0 | AO32: 0/0 | AU32: =SUM(AU8:AU31) -> 93 | AV32: =SUM(AV8:AV31) -> 93 | AW32: =SUM(AW8:AW30) -> 93 | AX32: =SUM(AX8:AX27) -> 0 | AY32: =SUM(AY8:AY28) -> 93 | AZ32: 0 | BA32: 0 | BB32: 0 | BC32: 56 | BD32: 52 | BE32: 35 | BF32: 69 | BG32: 72 | BH32: 19 | BI32: 0 | BJ32: 0 | BK32: 0 | BL32: 0 | BM32: 0 | BN32: 0 | BO32: 0 | BP32: 0 | BQ32: 0 | BR32: 0 | BS32: 0 | BT32: 0 | BU32: 0 | BV32: 0 | BW32: 0 | BX32: 0 | BY32: 0 | BZ32: 0 | CA32: 0 | CB32: 0 | CC32: 0 | CD32: 0 | CE32: 0 | CF32: 0 | CG32: 0 | CH32: 0 | CI32: 0 | CJ32: 0 | CK32: 0 | CL32: 0 | CM32: 0 | CN32: 0
AU33: 1학기 | AW33: =AW32-AW7 -> -434 | AX33: -510 | AY33: -451 | AZ33: -510 | BA33: -510 | BB33: -578 | BC33: 5 | BD33: 1 | BE33: 1 | BF33: 1 | BG33: 4 | BH33: 2 | BI33: =BI32-#REF! ->  | BJ33: =BJ32-#REF! ->  | BK33: =BK32-#REF! ->  | BL33: =BL32-#REF! ->  | BM33: =BM32-#REF! ->  | BN33: =BN32-#REF! ->  | BO33: =BO32-#REF! ->  | BP33: =BP32-#REF! ->  | BQ33: =BQ32-#REF! ->  | BR33: =BR32-#REF! ->  | BS33: =BS32-#REF! ->  | BT33: =BT32-#REF! ->  | BU33: =BU32-#REF! ->  | BV33: =BV32-#REF! ->  | BW33: =BW32-#REF! ->  | BX33: =BX32-#REF! ->  | BY33: =BY32-#REF! ->  | BZ33: =BZ32-#REF! ->  | CA33: =CA32-#REF! ->  | CB33: =CB32-#REF! ->  | CC33: =CC32-#REF! ->  | CD33: =CD32-#REF! ->  | CE33: =CE32-#REF! ->  | CF33: =CF32-#REF! ->  | CG33: =CG32-#REF! ->  | CH33: =CH32-#REF! ->  | CI33: =CI32-#REF! ->  | CJ33: =CJ32-#REF! ->  | CK33: =CK32-#REF! ->  | CL33: =CL32-#REF! -> 
A34: 2019년도 학사운영 계획
A35: 청심국제중고등학교
A36: 월 | B36: 주 | C36: 2학기 주요 학사 일정 | AU36: 수 업 일 수 | AV36: 중3고3수업일수 | AW36: 학기별 주간 수업 시수 | BI36: 영역별 활동시수
C37: 월요일 | K37: 화요일 | S37: 수요일 | AA37: 목요일 | AI37: 금요일 | AQ37: 토요일 | AS37: 일요일 | AW37: 학기별 교과 수업 시수 | BC37: 창체 | BE37: 재량 | BF37: 창체 | BH37: 재량 | BI37: 중1 | BN37: 중2 | BS37: 중3 | BX37: 고1 | CC37: 고2 | CH37: 고3 | CM37: 특별활동 수업
CM38: 활동 | CN38: 세부내용
C39: 일자 | D39: 수업 시수 | J39: 행사 내용 | K39: 일자 | L39: 수업 시수 | R39: 행사 내용 | S39: 일자 | T39: 수업 시수 | Z39: 행사 내용 | AA39: 일자 | AB39: 수업 시수 | AH39: 행사 내용 | AI39: 일자 | AJ39: 수업 시수 | AP39: 행사 내용 | AQ39: 일자 | AR39: 행사 내용 | AS39: 일자 | AT39: 행사 내용 | AW39: 중1 | AX39: 중2 | AY39: 중3 | AZ39: 고1 | BA39: 고2 | BB39: 고3
D40: 중 1 | E40: 중 2 | F40: 중 3 | G40: 고 1 | H40: 고 2 | I40: 고 3 | L40: 중 1 | M40: 중 2 | N40: 중 3 | O40: 고 1 | P40: 고 2 | Q40: 고 3 | T40: 중 1 | U40: 중 2 | V40: 중 3 | W40: 고 1 | X40: 고 2 | Y40: 고 3 | AB40: 중 1 | AC40: 중 2 | AD40: 중 3 | AE40: 고 1 | AF40: 고 2 | AG40: 고 3 | AJ40: 중 1 | AK40: 중 2 | AL40: 중 3 | AM40: 고 1 | AN40: 고 2 | AO40: 고 3 | AW40: 527 | AX40: 510 | AY40: 544 | AZ40: 510 | BA40: 510 | BB40: 578 | BC40: 51 | BD40: 51 | BE40: 34 | BF40: 68 | BG40: 68 | BH40: 17 | BI40: 자율 | BJ40: 동아 | BK40: 봉사 | BL40: 진로 | BM40: 행사 | BN40: 자율 | BO40: 동아 | BP40: 봉사 | BQ40: 진로 | BR40: 행사 | BS40: 자치 | BT40: 적응 | BU40: 봉사 | BV40: 동아 | BW40: 행사 | BX40: 자율 | BY40: 동아 | BZ40: 봉사 | CA40: 진로 | CB40: 행사 | CC40: 자율 | CD40: 동아 | CE40: 봉사 | CF40: 진로 | CG40: 행사 | CH40: 자율 | CI40: 동아 | CJ40: 봉사 | CK40: 진로 | CL40: 행사
A41: 8 | B41: 1 | C41: 12 | J41: 여름방학 | K41: 13 | R41: 여름방학 | S41: 14 | Z41: 여름방학 | AA41: 15 | AH41: 광복절 | AI41: 16 | AP41: 여름방학 | AQ41: 17 | AS41: 18 | AU41: =COUNTA(D41,L41,T41,AB41,AJ41) -> 0 | AV41: =COUNTA(F41,N41,V41,AD41,AL41) -> 0 | AW41: =D41+L41+T41+AB41+AJ41 -> 0 | AX41: =E41+M41+U41+AC41+AK41 -> 0 | AY41: =F41+N41+V41+AD41+AL41 -> 0 | AZ41: =G41+O41+W41+AE41+AM41 -> 0 | BA41: =H41+P41+X41+AF41+AN41 -> 0 | BB41: =I41+Q41+Y41+AG41+AO41 -> 0 | BC41: 3 | BD41: 3 | BE41: 2 | BF41: 4 | BG41: 4 | BH41: 1
B42: 2 | C42: 19 | D42: 1 | F42: 1 | J42: 개학식 (중1)자유학년제 (중2)연계자유학년제 | K42: 20 | L42: 1 | N42: 1 | R42: 교과교육과정계획서 제출 | S42: 21 | T42: 1 | V42: 1 | AA42: 22 | AB42: 1 | AD42: 1 | AH42: 8월 전편입학 면접(예정) | AI42: 23 | AJ42: 1 | AL42: 1 | AP42: (중)(고)학교운영위원회의 개최예정 봉사활동추진위원회 | AQ42: 24 | AS42: 25 | AT42: GLTC 66일 공부습관 형성 프로그램 시작 | AU42: 5 | AV42: 5 | AW42: 5 | AX42: 0 | AY42: 5 | AZ42: 0 | BA42: 0 | BB42: 0 | BC42: 5 | BD42: 5 | BE42: 4 | BF42: 6 | BG42: 6 | BH42: 3
A43: 9 | B43: 3 | C43: 26 | D43: 1 | F43: 1 | J43: (중)방과후학교/1인1악기 개강 칭찬의 날 학급회장선거 | K43: 27 | L43: 1 | N43: 1 | S43: 28 | T43: 1 | V43: 1 | AA43: 29 | AB43: 1 | AD43: 1 | AH43: GLTC 화재대피훈련 | AI43: 30 | AJ43: 1 | AL43: 1 | AP43: 학폭위 정기회의 생기부-8월 출결마감 및 고3 대입전형 수시 학생부 마감(예정) | AQ43: 31 | AS43: 1 | AU43: 5 | AV43: 5 | AW43: 5 | AX43: 0 | AY43: 5 | AZ43: 0 | BA43: 0 | BB43: 0 | BC43: 3 | BD43: 3 | BE43: 2 | BF43: 4 | BG43: 4 | BH43: 1
B44: 4 | C44: 2 | D44: 1 | F44: 1 | J44: 학교폭력예방교육 당선증 수여식(중)학부모상담주간(~20일) | K44: 3 | L44: 1 | N44: 1 | S44: 4 | T44: 1 | V44: 1 | Z44: 고3 모의고사 (평가원) | AA44: 5 | AB44: 1 | AD44: 1 | AH44: 목요음악회 | AI44: 6 | AJ44: 1 | AL44: 1 | AP44: 결석계 제출 마감 청렴집합교육(교직원) 학교 탐방의 날 | AQ44: 7 | AS44: 8 | AU44: 5 | AV44: 5 | AW44: 5 | AX44: 0 | AY44: 5 | AZ44: 0 | BA44: 0 | BB44: 0 | BC44: 3 | BD44: 3 | BE44: 2 | BF44: 4 | BG44: 4 | BH44: 1
B45: 5 | C45: 9 | D45: 1 | F45: 1 | J45: 체인지훈련 | K45: 10 | L45: 1 | N45: 1 | R45: 전원귀가 | S45: 11 | Z45: 재량휴업일 | AA45: 12 | AH45: 추석연휴 | AI45: 13 | AP45: 추석 | AQ45: 14 | AS45: 15 | AU45: 2 | AV45: 2 | AW45: 2 | AX45: 0 | AY45: 2 | AZ45: 0 | BA45: 0 | BB45: 0 | BC45: 3 | BD45: 3 | BE45: 2 | BF45: 4 | BG45: 4 | BH45: 1
B46: 6 | C46: 16 | J46: 재량휴업일 | K46: 17 | L46: 1 | N46: 1 | S46: 18 | T46: 1 | V46: 1 | AA46: 19 | AB46: 1 | AD46: 1 | AI46: 20 | AJ46: 1 | AL46: 1 | AQ46: 21 | AS46: 22 | AU46: 4 | AV46: 4 | AW46: 4 | AX46: 0 | AY46: 4 | AZ46: 0 | BA46: 0 | BB46: 0 | BC46: 3 | BD46: 3 | BE46: 2 | BF46: 4 | BG46: 4 | BH46: 1
B47: 7 | C47: 23 | D47: 1 | F47: 1 | J47: 가평군 축구대회 | K47: 24 | L47: 1 | N47: 1 | S47: 25 | T47: 1 | V47: 1 | AA47: 26 | AB47: 1 | AD47: 1 | AH47: (중,고)가을문화체험 목요음악회 | AI47: 27 | AJ47: 1 | AL47: 1 | AQ47: 28 | AS47: 29 | AU47: 5 | AV47: 5 | AW47: 5 | AX47: 0 | AY47: 5 | AZ47: 0 | BA47: 0 | BB47: 0 | BC47: 1 | BD47: 3 | BE47: 1 | BF47: 2 | BG47: 2 | BH47: 1
A48: 10 | B48: 8 | C48: 30 | D48: 1 | F48: 1 | J48: 생기부-9월 출결 마감/점검(자격증 및 인증) | K48: 1 | L48: 1 | N48: 1 | S48: 2 | T48: 1 | V48: 1 | Z48: 지필평가 원안제출 마감 전원귀가 | AA48: 3 | AH48: 개천절 | AI48: 4 | AP48: 재량휴업일 | AQ48: 5 | AR48: SAT | AS48: 6 | AU48: 3 | AV48: 3 | AW48: 3 | AX48: 0 | AY48: 3 | AZ48: 0 | BA48: 0 | BB48: 0 | BC48: 3 | BD48: 3 | BE48: 2 | BF48: 4 | BG48: 4 | BH48: 1
B49: 9 | C49: 7 | D49: 1 | F49: 1 | J49: 결석계 제출 마감 | K49: 8 | L49: 1 | N49: 1 | S49: 9 | Z49: 한글날 | AA49: 10 | AB49: 1 | AD49: 1 | AI49: 11 | AJ49: 1 | AL49: 1 | AQ49: 12 | AS49: 13 | AU49: 4 | AV49: 4 | AW49: 4 | AX49: 0 | AY49: 4 | AZ49: 0 | BA49: 0 | BB49: 0 | BC49: 2 | BD49: 0 | BE49: 0 | BF49: 1 | BG49: 2 | BH49: 0
B50: 10 | C50: 14 | D50: 1 | F50: 1 | K50: 15 | L50: 1 | N50: 1 | R50: 고3 모의고사 (서울시교육청) 2학기 1차지필 | S50: 16 | T50: 1 | V50: 1 | Z50: 2학기 1차지필 | AA50: 17 | AB50: 1 | AD50: 1 | AH50: 2학기 1차지필 | AI50: 18 | AJ50: 1 | AL50: 1 | AP50: 2학기 1차지필 전원귀가 | AQ50: 19 | AS50: 20 | AU50: 5 | AV50: 5 | AW50: 5 | AX50: 0 | AY50: 5 | AZ50: 0 | BA50: 0 | BB50: 0 | BC50: 3 | BD50: 3 | BE50: 2 | BF50: 4 | BG50: 4 | BH50: 1
B51: 11 | C51: 21 | D51: 1 | F51: 1 | K51: 22 | L51: 1 | N51: 1 | S51: 23 | T51: 1 | V51: 1 | AA51: 24 | AB51: 1 | AD51: 1 | AH51: 목요음악회 | AI51: 25 | AJ51: 1 | AL51: 1 | AP51: (중)(고)학교운영위원회의 개최예정동아리보고서제출 성희롱,성폭력 예방교육(교직원) | AQ51: 26 | AS51: 27 | AU51: 5 | AV51: 5 | AW51: 5 | AX51: 0 | AY51: 5 | AZ51: 0 | BA51: 0 | BB51: 0 | BC51: 3 | BD51: 3 | BE51: 2 | BF51: 4 | BG51: 4 | BH51: 1
A52: 11 | B52: 12 | C52: 28 | D52: 1 | F52: 1 | J52: 칭찬의 날 재난대응안전한국주간 | K52: 29 | L52: 1 | N52: 1 | S52: 30 | T52: 1 | V52: 1 | Z52: 수업공개기간 | AA52: 31 | AB52: 1 | AD52: 1 | AH52: 수업공개기간 할로윈파티 생기부-10월 출결 마감 | AI52: 1 | AJ52: 1 | AL52: 1 | AP52: 수업공개기간 미국수시 Deadline | AQ52: 2 | AR52: SAT | AS52: 3 | AU52: 5 | AV52: 5 | AW52: 5 | AX52: 0 | AY52: 5 | AZ52: 0 | BA52: 0 | BB52: 0 | BC52: 3 | BD52: 3 | BE52: 2 | BF52: 4 | BG52: 4 | BH52: 1
B53: 13 | C53: 4 | D53: 1 | F53: 1 | J53: 교원능력개발평가(~11/14) | K53: 5 | L53: 1 | N53: 1 | S53: 6 | T53: 1 | V53: 1 | AA53: 7 | AB53: 1 | AD53: 1 | AH53: GLTC 66일 공부습관형성 프로젝트 마무리 | AI53: 8 | AJ53: 1 | AL53: 1 | AP53: 결석계 제출 마감 | AQ53: 9 | AR53: 2020 중학교 신입학 면접(예정) | AS53: 10 | AU53: 5 | AV53: 5 | AW53: 5 | AX53: 0 | AY53: 5 | AZ53: 0 | BA53: 0 | BB53: 0 | BC53: 3 | BD53: 3 | BE53: 2 | BF53: 4 | BG53: 4 | BH53: 1
B54: 14 | C54: 11 | D54: 1 | F54: 1 | J54: 체인지훈련 | K54: 12 | L54: 1 | N54: 1 | S54: 13 | T54: 1 | V54: 1 | AA54: 14 | AB54: 1 | AD54: 1 | AH54: 대학수학능력시험 | AI54: 15 | AJ54: 1 | AL54: 1 | AP54: 전원귀가 | AQ54: 16 | AS54: 17 | AU54: 5 | AV54: 5 | AW54: 5 | AX54: 0 | AY54: 5 | AZ54: 0 | BA54: 0 | BB54: 0 | BC54: 3 | BD54: 3 | BE54: 0 | BF54: 4 | BG54: 4 | BH54: 0
B55: 15 | C55: 18 | D55: 1 | F55: 1 | K55: 19 | L55: 1 | N55: 1 | S55: 20 | T55: 1 | V55: 1 | Z55: 고1,2 모의고사 (경기도교육청) | AA55: 21 | AB55: 1 | AD55: 1 | AI55: 22 | AJ55: 1 | AL55: 1 | AP55: 과제연구대회 최종보고서 제출 마감 | AQ55: 23 | AS55: 24 | AU55: 5 | AV55: 5 | AW55: 5 | AX55: 0 | AY55: 5 | AZ55: 0 | BA55: 0 | BB55: 0 | BC55: 3 | BD55: 3 | BE55: 2 | BF55: 4 | BG55: 4 | BH55: 1
B56: 16 | C56: 25 | D56: 1 | F56: 1 | K56: 26 | L56: 1 | N56: 1 | S56: 27 | T56: 1 | V56: 1 | Z56: 지필평가 원안제출 마감 | AA56: 28 | AB56: 1 | AD56: 1 | AI56: 29 | AJ56: 1 | AL56: 1 | AP56: (중,고)방과후학교/1인1악기 종강 생기부-11월 출결마감 및 입력(과목별/개인별 세특, 독서활동) 및 중3 고입전형 학생부 마감(예정) | AQ56: 30 | AS56: 1 | AU56: 5 | AV56: 5 | AW56: 5 | AX56: 0 | AY56: 5 | AZ56: 0 | BA56: 0 | BB56: 0 | BC56: 3 | BD56: 3 | BE56: 2 | BF56: 4 | BG56: 4 | BH56: 1
A57: 12 | B57: 17 | C57: 2 | D57: 1 | F57: 1 | K57: 3 | L57: 1 | N57: 1 | S57: 4 | T57: 1 | V57: 1 | AA57: 5 | AB57: 1 | AD57: 1 | AI57: 6 | AJ57: 1 | AL57: 1 | AP57: (중)(고)학교운영위원회의 개최예정 결석계 제출 마감 | AQ57: 7 | AR57: SAT | AS57: 8 | AU57: 5 | AV57: 5 | AW57: 5 | AX57: 0 | AY57: 5 | AZ57: 0 | BA57: 0 | BB57: 0 | BC57: 2 | BD57: 0 | BE57: 2 | BF57: 1 | BG57: 2 | BH57: 1
B58: 18 | C58: 9 | D58: 1 | F58: 1 | J58: 생기부-교차검토 및 수정(전체 항목)(~12/20) 및 고3 대입전형 정시 학생부 마감(예정) | K58: 10 | L58: 1 | N58: 1 | R58: 2학기 2차지필 심폐소생술(실기)연수(교직원) | S58: 11 | T58: 1 | V58: 1 | Z58: 2학기 2차지필 | AA58: 12 | AB58: 1 | AD58: 1 | AH58: 2학기 2차지필 | AI58: 13 | AJ58: 1 | AL58: 1 | AP58: 2학기 2차지필 전원귀가 | AQ58: 14 | AS58: 15 | AU58: 5 | AV58: 5 | AW58: 5 | AX58: 0 | AY58: 5 | AZ58: 0 | BA58: 0 | BB58: 0 | BC58: 3 | BD58: 3 | BE58: 2 | BF58: 4 | BG58: 4 | BH58: 1
B59: 19 | C59: 16 | D59: 1 | F59: 1 | K59: 17 | L59: 1 | N59: 1 | S59: 18 | T59: 1 | V59: 1 | AA59: 19 | AB59: 1 | AD59: 1 | AH59: 과제연구대회 발표심사 | AI59: 20 | AJ59: 1 | AL59: 1 | AP59: 학폭위 정기회의 동아리보고서제출 전원귀가 | AQ59: 21 | AS59: 22 | AU59: 5 | AV59: 5 | AW59: 5 | AX59: 0 | AY59: 5 | AZ59: 0 | BA59: 0 | BB59: 0 | BC59: 2 | BD59: 0 | BE59: 2 | BF59: 1 | BG59: 2 | BH59: 1
B60: 20 | C60: 23 | D60: 1 | F60: 1 | J60: 크리스마스 파티 생기부-12월 출결마감/2학기 마감 | K60: 24 | L60: 1 | N60: 1 | R60: 겨울방학식 결석계 제출 마감 | S60: 25 | Z60: 성탄절 | AA60: 26 | AH60: 겨울방학 | AI60: 27 | AP60: 겨울방학 | AQ60: 28 | AR60: 2020 고등학교 신입학 면접(예정) | AS60: 29 | AU60: 2 | AV60: 2 | AW60: =D60+L60+T60+AB60+AJ60 -> 2
A61: 1 | B61: 21 | C61: 30 | J61: 겨울방학 | K61: 31 | R61: 겨울방학 | S61: 1 | Z61: 신정 | AA61: 2 | AH61: 겨울방학 | AI61: 3 | AP61: 겨울방학 영어캠프(~1/22) | AQ61: 4 | AS61: 5 | AU61: 0 | AV61: 0 | AW61: 0
B62: 22 | C62: 6 | J62: 겨울방학 | K62: 7 | R62: 겨울방학 | S62: 8 | Z62: 겨울방학 고-학생부 점검(예정) | AA62: 9 | AH62: 겨울방학 | AI62: 10 | AP62: (중)(고)학교운영위원회의 개최예정겨울방학 | AQ62: 11 | AS62: 12 | AU62: 0 | AV62: 0 | AW62: 0
B63: 23 | C63: 13 | J63: 겨울방학 | K63: 14 | R63: 겨울방학 | S63: 15 | Z63: 겨울방학 | AA63: 16 | AH63: 겨울방학 | AI63: 17 | AP63: 겨울방학 | AQ63: 18 | AS63: 19 | AU63: 0 | AV63: 0 | AW63: 0
B64: 24 | C64: 20 | J64: 겨울방학 | K64: 21 | R64: 겨울방학 | S64: 22 | Z64: 겨울방학 중-학생부 점검(예정) | AA64: 23 | AH64: 겨울방학 | AI64: 24 | AP64: 설날연휴 | AQ64: 25 | AR64: 설날 | AS64: 26 | AU64: 0 | AV64: 0 | AW64: 0
A65: 2 | B65: 25 | C65: 27 | J65: 겨울방학 | K65: 28 | R65: 겨울방학 | S65: 29 | Z65: 겨울방학 | AA65: 30 | AD65: 1 | AH65: 겨울방학 중3고3 개학식 | AI65: 31 | AL65: 1 | AP65: 겨울방학 중3고3 진로탐색 | AQ65: 1 | AS65: 2 | AU65: 0 | AV65: 2 | AW65: 0
B66: 26 | C66: 3 | F66: 1 | J66: 겨울방학 중3고3 진로탐색 | K66: 4 | N66: 1 | R66: 겨울방학 중3고3 진로탐색 | S66: 5 | V66: 1 | Z66: 겨울방학 중3고3 진로탐색 | AA66: 6 | AD66: 1 | AH66: 겨울방학 중3고3 진로탐색 | AI66: 7 | AL66: 1 | AP66: 겨울방학 중3고3 진로탐색 | AQ66: 8 | AS66: 9 | AU66: 0 | AV66: 5 | AW66: 0
B67: 27 | C67: 10 | F67: 1 | J67: 겨울방학 중3고3 진로탐색 | K67: 11 | N67: 1 | R67: 겨울방학 중3고3 진로탐색 | S67: 12 | T67: 1 | V67: 1 | Z67: 개학식 | AA67: 13 | AB67: 1 | AD67: 1 | AH67: GLTC 호실추첨 | AI67: 14 | AJ67: 1 | AL67: 1 | AP67: (중)(고)학교운영위원회의 개최예정 졸업식 | AQ67: 15 | AS67: 16 | AU67: 3 | AV67: 5
B68: 28 | C68: 17 | D68: 1 | K68: 18 | L68: 1 | R68: 2월 전편입학 면접(예정) 봉사활동추진위원회 | S68: 19 | T68: 1 | AA68: 20 | AB68: 1 | AH68: 2월 전편입학생 OT | AI68: 21 | AJ68: 1 | AQ68: 22 | AS68: 23 | AU68: 5 | AV68: 0
B69: 29 | C69: 24 | D69: 1 | K69: 25 | L69: 1 | S69: 26 | T69: 1 | Z69: 신입생OT | AA69: 27 | AB69: 1 | AH69: 신입생OT | AI69: 28 | AJ69: 1 | AP69: 신입생OT | AQ69: 29 | AS69: 3월1일 | AU69: 5 | AV69: 0
A70: 2학기합 | D70: =COUNTA(D41:D68)&"/"&SUM(D41:D68) -> 19/19 | E70: 0/0 | F70: 20/20 | G70: 0/0 | H70: 0/0 | I70: 0/0 | J70: =COUNTA(J41:J69)&"/"&SUM(J41:J68) -> 21/0 | L70: =COUNTA(L41:L68)&"/"&SUM(L41:L68) -> 20/20 | M70: 0/0 | N70: 21/21 | O70: 0/0 | P70: 0/0 | Q70: 0/0 | R70: 14/0 | T70: =COUNTA(T41:T68)&"/"&SUM(T41:T68) -> 18/18 | U70: 0/0 | V70: 18/18 | W70: 0/0 | X70: 0/0 | Y70: 0/0 | Z70: 18/0 | AB70: =COUNTA(AB41:AB68)&"/"&SUM(AB41:AB68) -> 18/18 | AC70: 0/0 | AD70: 19/19 | AE70: 0/0 | AF70: 0/0 | AG70: 0/0 | AH70: 23/0 | AJ70: =COUNTA(AJ41:AJ68)&"/"&SUM(AJ41:AJ68) -> 18/18 | AK70: 0/0 | AL70: 19/19 | AM70: 0/0 | AN70: 0/0 | AO70: 0/0 | AU70: =SUM(AU41:AU69) -> 98 | AV70: =SUM(AV41:AV69) -> 97 | AW70: =SUM(AW41:AW68) -> 85 | AX70: 0 | AY70: 83 | AZ70: 0 | BA70: 0 | BB70: 0 | BC70: 54 | BD70: 50 | BE70: 35 | BF70: 67 | BG70: 70 | BH70: 19 | BI70: 0 | BJ70: 0 | BK70: 0 | BL70: 0 | BM70: 0 | BN70: 0 | BO70: 0 | BP70: 0 | BQ70: 0 | BR70: 0 | BS70: 0 | BT70: 0 | BU70: 0 | BV70: 0 | BW70: 0 | BX70: 0 | BY70: 0 | BZ70: 0 | CA70: 0 | CB70: 0 | CC70: 0 | CD70: 0 | CE70: 0 | CF70: 0 | CG70: 0 | CH70: 0 | CI70: 0 | CJ70: 0 | CK70: 0 | CL70: 0 | CM70: 0 | CN70: 0
A71: 년 합 계 | B71: 수업 일수 | D71: =COUNTA(D8:D27)+COUNTA(D41:D68) -> 36 | E71: 0 | F71: 37 | G71: 0 | H71: 0 | I71: 0 | L71: =COUNTA(L8:L27)+COUNTA(L41:L68) -> 38 | M71: 0 | N71: 39 | O71: 0 | P71: 0 | Q71: 0 | T71: =COUNTA(T8:T27)+COUNTA(T41:T68) -> 36 | U71: 0 | V71: 36 | W71: 0 | X71: 0 | Y71: 0 | AB71: =COUNTA(AB8:AB27)+COUNTA(AB41:AB68) -> 36 | AC71: 0 | AD71: 37 | AE71: 0 | AF71: 0 | AG71: 0 | AJ71: =COUNTA(AJ8:AJ27)+COUNTA(AJ41:AJ68) -> 36 | AK71: 0 | AL71: 37 | AM71: 0 | AN71: 0 | AO71: 0 | AU71: =AU32+AU70 -> 191 | AV71: =AV32+AV70 -> 190 | AW71: =AW7+AW40 -> 1054 | AX71: 1020 | AY71: 1088 | AZ71: 1020 | BA71: 1020 | BB71: 1156 | BC71: 102 | BD71: 102 | BE71: 68 | BF71: 136 | BG71: 136 | BH71: 34
B72: 수업 시수 | D72: =SUM(D8:D27)+SUM(D41:D68) -> 36 | E72: 0 | F72: 37 | G72: 0 | H72: 0 | I72: 0 | L72: =SUM(L8:L27)+SUM(L41:L68) -> 38 | M72: 0 | N72: 39 | O72: 0 | P72: 0 | Q72: 0 | T72: =SUM(T8:T27)+SUM(T41:T68) -> 36 | U72: 0 | V72: 36 | W72: 0 | X72: 0 | Y72: 0 | AB72: =SUM(AB8:AB27)+SUM(AB41:AB68) -> 36 | AC72: 0 | AD72: 37 | AE72: 0 | AF72: 0 | AG72: 0 | AJ72: =SUM(AJ8:AJ27)+SUM(AJ41:AJ68) -> 36 | AK72: 0 | AL72: 37 | AM72: 0 | AN72: 0 | AO72: 0 | AW72: =AW32+AW70 -> 178 | AX72: 0 | AY72: 176 | AZ72: 0 | BA72: 0 | BB72: 0 | BC72: 110 | BD72: 102 | BE72: 70 | BF72: 136 | BG72: 142 | BH72: 38 | BI72: 0 | BJ72: 0 | BK72: 0 | BL72: 0 | BM72: 0 | BN72: 0 | BO72: 0 | BP72: 0 | BQ72: 0 | BR72: 0 | BS72: 0 | BT72: 0 | BU72: 0 | BV72: 0 | BW72: 0 | BX72: 0 | BY72: 0 | BZ72: 0 | CA72: 0 | CB72: 0 | CC72: 0 | CD72: 0 | CE72: 0 | CF72: 0 | CG72: 0 | CH72: 0 | CI72: 0 | CJ72: 0 | CK72: 0 | CL72: 0 | CM72: 0 | CN72: 0
C73: * 학사 운영은 학교 사정에 따라 일부 조정될 수 있습니다. | AU73: 2학기 | AW73: =AW70-AW40 -> -442 | AX73: -510 | AY73: -461 | AZ73: -510 | BA73: -510 | BB73: -578 | BC73: 3 | BD73: -1 | BE73: 1 | BF73: -1 | BG73: 2 | BH73: 2 | BI73: =BI70-#REF! ->  | BJ73: =BJ70-#REF! ->  | BK73: =BK70-#REF! ->  | BL73: =BL70-#REF! ->  | BM73: =BM70-#REF! ->  | BN73: =BN70-#REF! ->  | BO73: =BO70-#REF! ->  | BP73: =BP70-#REF! ->  | BQ73: =BQ70-#REF! ->  | BR73: =BR70-#REF! ->  | BS73: =BS70-#REF! ->  | BT73: =BT70-#REF! ->  | BU73: =BU70-#REF! ->  | BV73: =BV70-#REF! ->  | BW73: =BW70-#REF! ->  | BX73: =BX70-#REF! ->  | BY73: =BY70-#REF! ->  | BZ73: =BZ70-#REF! ->  | CA73: =CA70-#REF! ->  | CB73: =CB70-#REF! ->  | CC73: =CC70-#REF! ->  | CD73: =CD70-#REF! ->  | CE73: =CE70-#REF! ->  | CF73: =CF70-#REF! ->  | CG73: =CG70-#REF! ->  | CH73: =CH70-#REF! ->  | CI73: =CI70-#REF! ->  | CJ73: =CJ70-#REF! ->  | CK73: =CK70-#REF! ->  | CL73: =CL70-#REF! -> 
AZ74: 총 기준 시수 / 수업시수 와 창체 시수 계산하고.. 중1 : 1학기- 31시간 * 17주 , 창체 - 3시간 *17주 = 2학기 : - 31 * 17 , 창체 - 3*17 중2 : 1학기- 30시간 * 17주 , 창체 - 3시간 *17주 = 2학기 : - 31 * 17 , 창체 - 3*17 중3 : 1학기- 32시간 * 17주 , 창체 - 2시간 *17주 = 2학기 : - 31 * 17 , 창체 - 3*17 고1 : 1학기- 30시간 * 17주 , 창체 - 4시간 *17주 = 2학기 : - 31 * 17 , 창체 - 3*17 고2 : 1학기- 30시간 * 17주 , 창체 - 4시간 *17주 = 2학기 : - 31 * 17 , 창체 - 3*17 고3 : 1학기- 34시간 * 17주 , 창체 - 1시간 *17주 = 2학기 : - 31 * 17 , 창체 - 3*17
